Workbook

Sheet Корма
C1: Состав и питательность кормов, %
A2: № п.п. | B2: Код | C2: Сырье | D2: Отметить корма (*) | E2: Обменная энергия в 1 кг, ккал | F2: Сырой протеин | G2: Сырой жир | H2: Сырая клетчатка | I2: Сырая зола | J2: БЭВ | K2: Лизин | L2: Метионин | M2: Триптофан | N2: Метионин+цистин | O2: Кальций | P2: Фосфор | R2: Отметить корма (*) | T2: № п.п. | U2: Код | V2: Сырье | W2: Отметить корма (*) | X2: Обменная энергия в 1 кг, ккал | Y2: Сырой протеин | Z2: Сырой жир | AA2: Сырая клетчатка | AB2: Сырая зола | AC2: БЭВ | AD2: Лизин | AE2: Метионин | AF2: Триптофан | AG2: Метионин+цистин | AH2: Кальций | AI2: Фосфор
A3: 1 | B3: Грубые корма | C3: Сенная мука | E3: 3018 | F3: 10 | G3: 2.5 | H3: 25 | I3: 5 | J3: 47.5 | K3: 1 | L3: 0.1 | M3: 0.2 | N3: 0.4 | O3: 1.7 | P3: 0.2 | R3: * | T3: 6 | U3: Грубые корма | V3: Мука из древесной зелени I сорта | W3: * | X3: 3036 | Y3: 6 | Z3: 4.3 | AA3: 23.9 | AB3: 5.3 | AC3: 50.5 | AD3: 0.25 | AE3: 0.13 | AF3: 0.33 | AG3: 0.21 | AH3: 0.91 | AI3: 0.11
A4: 2 | B4: Грубые корма | C4: Мука и крупка водорослевая | E4: 2575 | F4: 6 | G4: 2.5 | H4: 10 | I4: 17 | J4: 54.5 | K4: 4 | L4: 0.5 | M4: 0.08 | N4: 0.6 | O4: 0.5 | P4: 0.1 | T4: 15 | U4: Зерновые злаки | V4: Пшеница щуплая | W4: * | X4: 3031 | Y4: 15 | Z4: 1.9 | AA4: 4.3 | AB4: 1.7 | AC4: 63.1 | AD4: 0.38 | AE4: 0.18 | AF4: 0.18 | AG4: 0.39 | AH4: 0.05 | AI4: 0.42
A5: 3 | B5: Грубые корма | C5: Корма травяные I класса | E5: 3173 | F5: 17.3 | G5: 6.4 | H5: 22 | I5: 8.1 | J5: 36.2 | K5: 0.79 | L5: 0.22 | M5: 0.27 | N5: 0.43 | O5: 1.22 | P5: 0.26 | T5: 38 | U5: Отходы мукомольного производства | V5: Зерновая смесь от первичной обработки с 50—70% зерна | W5: * | X5: 2893 | Y5: 11.7 | Z5: 1.4 | AA5: 7.4 | AB5: 4 | AC5: 61.5 | AD5: 0.23 | AE5: 0.1 | AF5: 0.08 | AG5: 0.19 | AH5: 0.23 | AI5: 0.34
A6: 4 | B6: Грубые корма | C6: Корма травяные II класса | E6: 3182 | F6: 15.9 | G6: 6.4 | H6: 24 | I6: 7.3 | J6: 36.4 | K6: 0.68 | L6: 0.17 | M6: 0.24 | N6: 0.32 | O6: 1.01 | P6: 0.21 | T6: 76 | U6: Жмыхи и шроты | V6: Шрот подсолнечный, обогащенный липидами | W6: * | X6: 3411 | Y6: 37.2 | Z6: 4.8 | AA6: 9.8 | AB6: 6.2 | AC6: 32 | AD6: 1.21 | AE6: 0.72 | AF6: 0.47 | AG6: 1.29 | AH6: 0.4 | AI6: 0.9
A7: 5 | B7: Грубые корма | C7: Корма травяные III класса | E7: 3006 | F7: 14.2 | G7: 2.7 | H7: 27.1 | I7: 7.2 | J7: 38.8 | K7: 0.58 | L7: 0.16 | M7: 0.24 | N7: 0.28 | O7: 0.92 | P7: 0.21 | T7: 113 | U7: Сахаристые корма | V7: Сахар | W7: * | X7: 2952 | AC7: 90
A8: 6 | B8: Грубые корма | C8: Мука из древесной зелени I сорта | D8: * | E8: 3036 | F8: 6 | G8: 4.3 | H8: 23.9 | I8: 5.3 | J8: 50.5 | K8: 0.25 | L8: 0.13 | M8: 0.33 | N8: 0.21 | O8: 0.91 | P8: 0.11 | T8: 127 | U8: Мука рыбная | V8: Мука рыбная с 66% сырого протеина | W8: * | X8: 3723 | Y8: 68.5 | Z8: 7.4 | AB8: 11.8 | AC8: 2.3 | AD8: 5.5 | AE8: 1.6 | AF8: 0.71 | AG8: 3.1 | AH8: 4 | AI8: 2.5
A9: 7 | B9: Грубые корма | C9: Мука из древесной зелени II сорта | E9: 2927 | F9: 5.9 | G9: 3 | H9: 30.7 | I9: 6.9 | J9: 43.5 | K9: 0.23 | L9: 0.11 | M9: 0.28 | N9: 0.19 | O9: 1.05 | P9: 0.11 | T9: 159 | U9: Аминокислоты | V9: ККЛ | W9: * | X9: 3037 | Y9: 34.3 | Z9: 0.5 | AA9: 0.8 | AB9: 10.9 | AC9: 43.5 | AD9: 6.2 | AE9: 0.49 | AF9: 0.85 | AG9: 0.79 | AH9: 2.76 | AI9: 1.08
A10: 8 | B10: Грубые корма | C10: Мука кормовая из яблочных выжимок | E10: 2925 | F10: 8.2 | G10: 1 | H10: 16 | I10: 5.2 | J10: 59.6 | K10: 0.2 | L10: 0.08 | M10: 0.16 | N10: 0.16 | O10: 0.34 | P10: 0.14 | T10: 160 | U10: Аминокислоты | V10: Метионин кормовой | W10: * | X10: 2919 | AB10: 1 | AC10: 89 | AE10: 98 | AG10: 98
A11: 9 | B11: Грубые корма | C11: Мука из герани | E11: 2581 | F11: 12.2 | G11: 1.7 | H11: 20 | I11: 18.1 | J11: 38 | K11: 0.55 | L11: 0.16 | M11: 0.28 | N11: 0.28 | O11: 0.32 | P11: 0.3 | T11: 161 | U11: Минералы | V11: Мел кормовой | W11: * | AH11: 33
A12: 10 | B12: Грубые корма | C12: Мука из базилика | E12: 2894 | F12: 12.2 | G12: 3.2 | H12: 27.1 | I12: 10.5 | J12: 37 | K12: 0.46 | L12: 0.12 | M12: 0.23 | N12: 0.24 | O12: 0.28 | P12: 0.33 | T12: 164 | U12: Минералы | V12: Монокальцийфосфат | W12: * | AH12: 16.4 | AI12: 23
A13: 11 | B13: Корнеклубнеплоды | C13: Картофель сушеный | E13: 2924 | F13: 7 | G13: 0.4 | H13: 2 | I13: 4 | J13: 76.6 | K13: 0.3 | L13: 0.1 | M13: 0.3 | N13: 0.1 | O13: 0.06 | P13: 0.3 | T13: 168 | U13: Минералы | V13: Соль поваренная | W13: *
A14: 12 | B14: Корнеклубнеплоды | C14: Морковь сушеная | E14: 2964 | F14: 10 | G14: 2 | H14: 9 | I14: 6 | J14: 63 | K14: 0.5 | L14: 0.1 | M14: 0.1 | N14: 0.2 | O14: 0.1 | P14: 0.1
A15: 13 | B15: Корнеклубнеплоды | C15: Свекла сушеная | E15: 2904 | F15: 5 | G15: 0.5 | H15: 7 | I15: 4 | J15: 73.5 | K15: 0.2 | L15: 0.07 | M15: 0.04 | N15: 0.07 | O15: 0.2 | P15: 0.1
A16: 14 | B16: Зерновые злаки | C16: Пшеница | E16: 3004 | F16: 11.5 | G16: 2.2 | H16: 2.7 | I16: 1.6 | J16: 68 | K16: 0.36 | L16: 0.18 | M16: 0.16 | N16: 0.38 | O16: 0.04 | P16: 0.3
A17: 15 | B17: Зерновые злаки | C17: Пшеница щуплая | D17: * | E17: 3031 | F17: 15 | G17: 1.9 | H17: 4.3 | I17: 1.7 | J17: 63.1 | K17: 0.38 | L17: 0.18 | M17: 0.18 | N17: 0.39 | O17: 0.05 | P17: 0.42
A18: 16 | B18: Зерновые злаки | C18: Ячмень | E18: 2971 | F18: 11 | G18: 2.2 | H18: 5.5 | I18: 2.4 | J18: 64.9 | K18: 0.4 | L18: 0.18 | M18: 0.13 | N18: 0.39 | O18: 0.06 | P18: 0.34
A19: 17 | B19: Зерновые злаки | C19: Ячмень без пленок | E19: 3042 | F19: 12.2 | G19: 2.9 | H19: 2.2 | I19: 1.6 | J19: 67.1 | K19: 0.45 | L19: 0.19 | M19: 0.17 | N19: 0.4 | O19: 0.07 | P19: 0.35
A20: 18 | B20: Зерновые злаки | C20: Овес | E20: 3044 | F20: 10.5 | G20: 4.5 | H20: 10.3 | I20: 3 | J20: 57.7 | K20: 0.33 | L20: 0.14 | M20: 0.15 | N20: 0.34 | O20: 0.12 | P20: 0.35
A21: 19 | B21: Зерновые злаки | C21: Овес без пленок | E21: 3114 | F21: 12 | G21: 4.7 | H21: 4.7 | I21: 1.7 | J21: 62.9 | K21: 0.41 | L21: 0.16 | M21: 0.16 | N21: 0.36 | O21: 0.12 | P21: 0.25
A22: 20 | B22: Зерновые злаки | C22: Просо | E22: 3015 | F22: 10.7 | G22: 3.6 | H22: 9 | I22: 2.8 | J22: 59.9 | K22: 0.25 | L22: 0.2 | M22: 0.15 | N22: 0.36 | O22: 0.07 | P22: 0.3
A23: 21 | B23: Зерновые злаки | C23: Рожь | E23: 2991 | F23: 11.4 | G23: 2 | H23: 2.4 | I23: 1.7 | J23: 68.5 | K23: 0.4 | L23: 0.18 | M23: 0.11 | N23: 0.37 | O23: 0.08 | P23: 0.3
A24: 22 | B24: Зерновые злаки | C24: Горох | E24: 3050 | F24: 20.4 | G24: 1.5 | H24: 5.4 | I24: 2.6 | J24: 56.1 | K24: 1.48 | L24: 0.2 | M24: 0.17 | N24: 0.47 | O24: 0.14 | P24: 0.37
A25: 23 | B25: Зерновые злаки | C25: Кукуруза | E25: 3060 | F25: 9 | G25: 4 | H25: 2.2 | I25: 1.3 | J25: 69.5 | K25: 0.26 | L25: 0.16 | M25: 0.08 | N25: 0.27 | O25: 0.03 | P25: 0.25
A26: 24 | B26: Зерновые злаки | C26: Чумиза | E26: 2983 | F26: 11.1 | G26: 3.9 | H26: 9 | I26: 4.3 | J26: 57.7 | K26: 0.54 | L26: 0.13 | M26: 0.2 | N26: 0.32 | O26: 0.07 | P26: 0.3
A27: 25 | B27: Зерновые злаки | C27: Сорго | E27: 2990 | F27: 8.3 | G27: 2.8 | H27: 3 | I27: 1.6 | J27: 70.3 | K27: 0.25 | L27: 0.15 | M27: 0.1 | N27: 0.3 | O27: 0.06 | P27: 0.26
A28: 26 | B28: Зерновые злаки | C28: Рис | E28: 2845 | F28: 8.3 | G28: 2.1 | H28: 8.4 | I28: 5.1 | J28: 62.1 | K28: 0.28 | L28: 0.16 | M28: 0.09 | N28: 0.27 | O28: 0.07 | P28: 0.23
A29: 27 | B29: Зерновые злаки | C29: Рис шелушеный | E29: 2827 | F29: 8 | G29: 1.3 | H29: 2 | I29: 4.5 | J29: 70.2 | K29: 0.28 | L29: 0.16 | M29: 0.08 | N29: 0.26 | O29: 0.07 | P29: 0.23
A30: 28 | B30: Зерновые бобовые | C30: Соя | E30: 3798 | F30: 34 | G30: 16.6 | H30: 7 | I30: 4.6 | J30: 23.8 | K30: 2.1 | L30: 0.46 | M30: 0.36 | N30: 0.93 | O30: 0.3 | P30: 0.55
A31: 29 | B31: Зерновые бобовые | C31: Вика | E31: 3070 | F31: 24.1 | G31: 1.5 | H31: 5.6 | I31: 3.4 | J31: 51.4 | K31: 1.31 | L31: 0.27 | M31: 0.15 | N31: 0.49 | O31: 0.15 | P31: 0.39
A32: 30 | B32: Зерновые бобовые | C32: Чина | E32: 3098 | F32: 25.9 | G32: 1.1 | H32: 5.7 | I32: 2.7 | J32: 50.6 | K32: 1.67 | L32: 0.24 | M32: 0.22 | N32: 0.44 | O32: 0.15 | P32: 0.5
A33: 31 | B33: Зерновые бобовые | C33: Чечевица | E33: 3084 | F33: 25.2 | G33: 1.3 | H33: 4.3 | I33: 3.1 | J33: 52.1 | K33: 1.51 | L33: 0.28 | M33: 0.14 | N33: 0.41 | O33: 0.12 | P33: 0.35
A34: 32 | B34: Зерновые злаки | C34: Тритикале | E34: 3050 | F34: 15.1 | G34: 2.4 | H34: 2.3 | I34: 1.8 | J34: 64.4 | K34: 0.41 | L34: 0.13 | M34: 0.14 | N34: 0.33 | O34: 0.06 | P34: 0.34
A35: 33 | B35: Зерновые бобовые | C35: Бобы кормовые | E35: 3094 | F35: 25 | G35: 1.5 | H35: 6.6 | I35: 3 | J35: 49.9 | K35: 1.4 | L35: 0.21 | M35: 0.28 | N35: 0.39 | O35: 0.11 | P35: 0.5
A36: 34 | B36: Зерновые бобовые | C36: Люпин кормовой | E36: 3274 | F36: 32 | G36: 3.7 | H36: 13.5 | I36: 3 | J36: 33.8 | K36: 1.45 | L36: 0.37 | M36: 0.21 | N36: 0.74 | O36: 0.29 | P36: 0.43
A37: 35 | B37: Зерновые бобовые | C37: Нут | E37: 3221 | F37: 22.6 | G37: 4.7 | H37: 2.5 | I37: 2.4 | J37: 53.8 | K37: 1.42 | L37: 0.4 | M37: 0.17 | N37: 0.59 | O37: 0.07 | P37: 0.3
A38: 36 | B38: Зерновые злаки | C38: Полба | E38: 2999 | F38: 13.6 | G38: 2.1 | H38: 8.6 | I38: 2.4 | J38: 59.3 | K38: 0.4 | L38: 0.24 | M38: 0.17 | N38: 0.45 | O38: 0.09 | P38: 0.23
A39: 37 | B39: Отходы мукомольного производства | C39: Побочные продукты из пшеницы | E39: 2950 | F39: 11.6 | G39: 1.3 | H39: 2.3 | I39: 2.1 | J39: 68.7 | K39: 0.33 | L39: 0.26 | M39: 0.17 | N39: 0.36 | O39: 0.15 | P39: 0.23
A40: 38 | B40: Отходы мукомольного производства | C40: Зерновая смесь от первичной обработки с 50—70% зерна | D40: * | E40: 2893 | F40: 11.7 | G40: 1.4 | H40: 7.4 | I40: 4 | J40: 61.5 | K40: 0.23 | L40: 0.1 | M40: 0.08 | N40: 0.19 | O40: 0.23 | P40: 0.34
A41: 39 | B41: Отходы мукомольного производства | C41: Зерновая смесь от первичной обработки с 71—85% зерна | E41: 2946 | F41: 12.5 | G41: 1.4 | H41: 4.7 | I41: 2.7 | J41: 64.7 | K41: 0.29 | L41: 0.14 | M41: 0.1 | N41: 0.25 | O41: 0.25 | P41: 0.32
A42: 40 | B42: Семена масличных | C42: Семена подсолнечника | E42: 5128 | F42: 18.4 | G42: 47.8 | H42: 20.1 | I42: 2.9 | J42: 0.8 | K42: 1.18 | L42: 0.41 | M42: 0.26 | N42: 1.28 | O42: 0.37 | P42: 0.53
A43: 41 | B43: Зерновые злаки | C43: Мука пшеничная II сорта | E43: 3037 | F43: 13.6 | G43: 2 | H43: 0.7 | I43: 1.1 | J43: 68.6 | K43: 0.39 | L43: 0.19 | M43: 0.16 | N43: 0.4 | O43: 0.03 | P43: 0.19
A44: 42 | B44: Зерновые злаки | C44: Мука кормовая ячменная | E44: 2958 | F44: 12.1 | G44: 2.1 | H44: 3.1 | I44: 3.1 | J44: 65.6 | K44: 0.45 | L44: 0.13 | M44: 0.16 | N44: 0.39 | O44: 0.07 | P44: 0.34
A45: 43 | B45: Зерновые злаки | C45: Мука кормовая овсяная | E45: 3034 | F45: 11.7 | G45: 4.3 | H45: 8 | I45: 3.5 | J45: 58.5 | K45: 0.4 | L45: 0.17 | M45: 0.16 | N45: 0.38 | O45: 0.11 | P45: 0.28
A46: 44 | B46: Зерновые злаки | C46: Сухари | E46: 3344 | F46: 8.9 | G46: 10.6 | H46: 0.1 | I46: 1.2 | J46: 65.2 | K46: 0.29 | L46: 0.14 | M46: 0.12 | N46: 0.32 | O46: 0.02 | P46: 0.08
A47: 45 | B47: Зерновые злаки | C47: Сухари панировочные пшеничные | E47: 2943 | F47: 11.2 | G47: 1.4 | H47: 0.4 | I47: 2.3 | J47: 70.7 | K47: 0.34 | L47: 0.17 | M47: 0.13 | N47: 0.37 | O47: 0.05 | P47: 0.15
A48: 46 | B48: Зерновые злаки | C48: Сухари ржано-пшеничные | E48: 2940 | F48: 12 | G48: 1.8 | H48: 1.9 | I48: 3.2 | J48: 67.1 | K48: 0.37 | L48: 0.18 | M48: 0.14 | N48: 0.39 | O48: 0.06 | P48: 0.3
A49: 47 | B49: Зерновые злаки | C49: Сухари обойно-пшеничные | E49: 2972 | F49: 13.1 | G49: 2 | H49: 2 | I49: 2.9 | J49: 66 | K49: 0.4 | L49: 0.2 | M49: 0.15 | N49: 0.42 | O49: 0.05 | P49: 0.35
A50: 48 | B50: Зерновые злаки | C50: Сухари черные | E50: 2926 | F50: 11.2 | G50: 1.7 | H50: 1.9 | I50: 3.2 | J50: 68 | K50: 0.38 | L50: 0.17 | M50: 0.13 | N50: 0.38 | O50: 0.06 | P50: 0.27
A51: 49 | B51: Зерновые злаки | C51: Сухари из муки I сорта | E51: 2940 | F51: 11.2 | G51: 1.4 | H51: 0.6 | I51: 2.4 | J51: 70.4 | K51: 0.35 | L51: 0.17 | M51: 0.14 | N51: 0.37 | O51: 0.05 | P51: 0.19
A52: 50 | B52: Зерновые злаки | C52: Сухари из муки II сорта | E52: 2950 | F52: 11.2 | G52: 1.4 | H52: 0.2 | I52: 2.1 | J52: 71.1 | K52: 0.34 | L52: 0.17 | M52: 0.18 | N52: 0.37 | O52: 0.04 | P52: 0.12
A53: 51 | B53: Отходы мукомольного производства | C53: Отруби пшеничные | E53: 3037 | F53: 15 | G53: 4.2 | H53: 9 | I53: 4.5 | J53: 53.3 | K53: 0.55 | L53: 0.16 | M53: 0.21 | N53: 0.37 | O53: 0.14 | P53: 1
A54: 52 | B54: Отходы мукомольного производства | C54: Отруби ржаные | E54: 2993 | F54: 15 | G54: 3.4 | H54: 7 | I54: 4.8 | J54: 55.8 | K54: 0.57 | L54: 0.18 | M54: 0.1 | N54: 0.44 | O54: 0.11 | P54: 0.7
A55: 53 | B55: Отходы мукомольного производства | C55: Отруби кукурузные | E55: 3118 | F55: 10 | G55: 5.6 | H55: 8.5 | I55: 2 | J55: 59.9 | K55: 0.21 | L55: 0.14 | M55: 0.06 | N55: 0.22 | O55: 0.3 | P55: 0.5
A56: 54 | B56: Отходы мукомольного производства | C56: Отруби рисовые | E56: 3033 | F56: 12.9 | G56: 6 | H56: 12.5 | I56: 6.2 | J56: 48.4 | K56: 0.51 | L56: 0.23 | M56: 0.12 | N56: 0.43 | O56: 0.25 | P56: 0.23
A57: 55 | B57: Отходы мукомольного производства | C57: Мучка кормовая пшеничная | E57: 3048 | F57: 14.2 | G57: 3 | H57: 4 | I57: 2.3 | J57: 62.5 | K57: 0.48 | L57: 0.21 | M57: 0.18 | N57: 0.4 | O57: 0.07 | P57: 0.3
A58: 56 | B58: Отходы мукомольного производства | C58: Мучка кормовая ячменная | E58: 2918 | F58: 14 | G58: 3 | H58: 5 | I58: 6.2 | J58: 57.8 | K58: 0.44 | L58: 0.15 | M58: 0.15 | N58: 0.33 | O58: 0.11 | P58: 0.37
A59: 57 | B59: Отходы мукомольного производства | C59: Мучка кормовая просяная | E59: 3034 | F59: 12.1 | G59: 5.1 | H59: 11.3 | I59: 4.7 | J59: 52.8 | K59: 0.33 | L59: 0.15 | M59: 0.15 | N59: 0.35 | O59: 0.14 | P59: 0.4
A60: 58 | B60: Отходы мукомольного производства | C60: Мучка кормовая гороховая | E60: 3053 | F60: 22.2 | G60: 1.8 | H60: 7.3 | I60: 3.6 | J60: 51.1 | K60: 1.35 | L60: 0.37 | M60: 0.23 | N60: 0.75 | O60: 0.12 | P60: 0.43
A61: 59 | B61: Отходы мукомольного производства | C61: Мучка кормовая кукурузная | E61: 3039 | F61: 9.3 | G61: 3.8 | H61: 3 | I61: 1.8 | J61: 68.1 | K61: 0.26 | L61: 0.14 | M61: 0.08 | N61: 0.24 | O61: 0.04 | P61: 0.3
A62: 60 | B62: Отходы мукомольного производства | C62: Мучка кормовая рисовая | E62: 2999 | F62: 9.5 | G62: 8.1 | H62: 12.7 | I62: 8.7 | J62: 47 | K62: 0.35 | L62: 0.25 | M62: 0.2 | N62: 0.42 | O62: 0.24 | P62: 0.43
A63: 61 | B63: Отходы мукомольного производства | C63: Мучка кормовая овсяная | E63: 3012 | F63: 11.6 | G63: 4.2 | H63: 10.2 | I63: 4 | J63: 56 | K63: 0.36 | L63: 0.15 | M63: 0.14 | N63: 0.3 | O63: 0.16 | P63: 0.33
A64: 62 | B64: Отходы мукомольного производства | C64: Мучка кормовая ржаная | E64: 3067 | F64: 13.1 | G64: 3.9 | H64: 3.2 | I64: 2.5 | J64: 63.3 | K64: 0.44 | L64: 0.21 | M64: 0.13 | N64: 0.46 | O64: 0.07 | P64: 0.41
A65: 63 | B65: Отходы мукомольного производства | C65: Мучка кормовая гречневая | E65: 2898 | F65: 11.4 | G65: 2.9 | H65: 9 | I65: 5.7 | J65: 57 | K65: 0.64 | L65: 0.23 | M65: 0.17 | N65: 0.43 | O65: 0.16 | P65: 0.23
A66: 64 | B66: Зерновые злаки | C66: Зародыш пшеничный | E66: 3471 | F66: 29.9 | G66: 10.9 | H66: 3 | I66: 5.6 | J66: 36.6 | K66: 1.33 | L66: 0.36 | M66: 0.22 | N66: 0.67 | O66: 0.59 | P66: 0.89
A67: 65 | B67: Зерновые злаки | C67: Зародыш кукурузный | E67: 3423 | F67: 11.9 | G67: 14.5 | H67: 6.5 | I67: 5 | J67: 48.1 | K67: 0.96 | L67: 0.26 | M67: 0.22 | N67: 0.56 | O67: 0.52 | P67: 0.73
A68: 66 | B68: Зерновые злаки | C68: Пшеница экструдированная | E68: 3031 | F68: 11 | G68: 2.3 | H68: 2.8 | I68: 1.7 | J68: 69.2 | K68: 0.35 | L68: 0.18 | M68: 0.16 | N68: 0.37 | O68: 0.04 | P68: 0.32
A69: 67 | B69: Зерновые злаки | C69: Ячмень экструдированный | E69: 2995 | F69: 10.2 | G69: 2.3 | H69: 5.7 | I69: 2.5 | J69: 66.3 | K69: 0.4 | L69: 0.18 | M69: 0.12 | N69: 0.38 | O69: 0.06 | P69: 0.35
A70: 68 | B70: Зерновые злаки | C70: Ячмень без пленок экструдированный | E70: 3082 | F70: 12.7 | G70: 3 | H70: 2.3 | I70: 1.7 | J70: 67.3 | K70: 0.47 | L70: 0.2 | M70: 0.18 | N70: 0.42 | O70: 0.07 | P70: 0.36
A71: 69 | B71: Зерновые злаки | C71: Овес экструдированный | E71: 3087 | F71: 10.9 | G71: 4.7 | H71: 10.7 | I71: 3.1 | J71: 57.6 | K71: 0.4 | L71: 0.15 | M71: 0.16 | N71: 0.35 | O71: 0.12 | P71: 0.36
A72: 70 | B72: Зерновые злаки | C72: Овес без пленок экструдированный | E72: 3158 | F72: 12.5 | G72: 4.9 | H72: 4.9 | I72: 1.8 | J72: 62.9 | K72: 0.43 | L72: 0.17 | M72: 0.17 | N72: 0.37 | O72: 0.12 | P72: 0.26
A73: 71 | B73: Зерновые бобовые | C73: Горох экструдированный | E73: 3094 | F73: 21.2 | G73: 1.6 | H73: 5.6 | I73: 2.7 | J73: 55.9 | K73: 1.54 | L73: 0.21 | M73: 0.18 | N73: 0.49 | O73: 0.15 | P73: 0.39
A74: 72 | B74: Зерновые злаки | C74: Кукуруза экструдированный | E74: 3084 | F74: 8.5 | G74: 4.1 | H74: 2.3 | I74: 1.5 | J74: 70.6 | K74: 0.27 | L74: 0.16 | M74: 0.09 | N74: 0.25 | O74: 0.06 | P74: 0.3
A75: 73 | B75: Зерновые бобовые | C75: Соя экструдированная | E75: 3823 | F75: 35.3 | G75: 16.2 | H75: 7.3 | I75: 4.8 | J75: 23.4 | K75: 2.94 | L75: 0.48 | M75: 0.37 | N75: 0.97 | O75: 0.31 | P75: 0.57
A76: 74 | B76: Зерновые злаки | C76: Хлопья сорго | E76: 3092 | F76: 10 | G76: 2.7 | H76: 2 | J76: 72.3 | K76: 0.25 | L76: 0.15 | M76: 0.37 | N76: 0.3 | O76: 0.04 | P76: 0.25
A77: 75 | B77: Отходы крахмального производства | C77: Мезга картофельная сухая | E77: 3010 | F77: 22 | G77: 0.4 | H77: 7 | I77: 7 | J77: 53.6 | O77: 0.06 | P77: 0.1
A78: 76 | B78: Жмыхи и шроты | C78: Шрот подсолнечный, обогащенный липидами | D78: * | E78: 3411 | F78: 37.2 | G78: 4.8 | H78: 9.8 | I78: 6.2 | J78: 32 | K78: 1.21 | L78: 0.72 | M78: 0.47 | N78: 1.29 | O78: 0.4 | P78: 0.9
A79: 77 | B79: Жмыхи и шроты | C79: Шрот подсолнечный экструдированный | E79: 3501 | F79: 38.8 | G79: 1.7 | H79: 13.9 | J79: 35.6 | K79: 1.33 | L79: 0.78 | N79: 1.3 | O79: 0.33 | P79: 0.82
A80: 78 | B80: Жмыхи и шроты | C80: Шрот подсолнечный с 41% сырого протеина и более | E80: 3327 | F80: 42.9 | G80: 1.5 | H80: 12.5 | I80: 6.6 | J80: 26.5 | K80: 1.4 | L80: 0.9 | M80: 0.54 | N80: 1.62 | O80: 0.3 | P80: 1
A81: 79 | B81: Жмыхи и шроты | C81: Шрот подсолнечный с 40% сырого протеина | E81: 3295 | F81: 38.8 | G81: 1.7 | H81: 14.1 | I81: 6.3 | J81: 29.1 | K81: 1.33 | L81: 0.78 | M81: 0.52 | N81: 1.43 | O81: 0.32 | P81: 0.91
A82: 80 | B82: Жмыхи и шроты | C82: Шрот подсолнечный с 38% сырого протеина | E82: 3276 | F82: 36 | G82: 1.9 | H82: 14.9 | I82: 6.1 | J82: 31.1 | K82: 1.2 | L82: 0.68 | M82: 0.45 | N82: 1.22 | O82: 0.42 | P82: 0.9
A83: 81 | B83: Жмыхи и шроты | C83: Шрот подсолнечный с 46 до 50% | E83: 3414 | F83: 49 | G83: 1.4 | H83: 1.3 | I83: 6.1 | J83: 32.2 | K83: 3.14 | L83: 0.5 | M83: 0.58 | N83: 0.97 | O83: 0.49 | P83: 1.32
A84: 82 | B84: Жмыхи и шроты | C84: Шрот подсолнечный с 40 до 45% | E84: 3275 | F84: 42.5 | G84: 1.4 | H84: 1.5 | I84: 7.9 | J84: 36.7 | K84: 2.85 | L84: 0.42 | M84: 0.55 | N84: 0.8 | O84: 0.67 | P84: 1.4
A85: 83 | B85: Жмыхи и шроты | C85: Жмых подсолнечный | E85: 3567 | F85: 40.2 | G85: 7.5 | H85: 13.3 | I85: 6.1 | J85: 22.9 | K85: 1.47 | L85: 0.77 | M85: 0.56 | N85: 1.4 | O85: 0.33 | P85: 0.91
A86: 84 | B86: Жмыхи и шроты | C86: Шрот соевый кормовой с более 46% сырого протеина | E86: 3454 | F86: 49.7 | G86: 1.9 | H86: 7 | I86: 5.8 | J86: 25.6 | K86: 2.84 | L86: 0.66 | M86: 0.6 | N86: 1.42 | O86: 0.39 | P86: 0.78
A87: 85 | B87: Жмыхи и шроты | C87: Шрот соевый кормовой с 41—45% сырого протеина | E87: 3319 | F87: 42 | G87: 1.2 | H87: 7 | I87: 6.1 | J87: 33.7 | K87: 2.71 | L87: 0.6 | M87: 0.59 | N87: 1.3 | O87: 0.38 | P87: 0.65
A88: 86 | B88: Жмыхи и шроты | C88: Шрот соевый кормовой с менее 41% сырого протеина | E88: 3308 | F88: 40 | G88: 1.2 | H88: 10.6 | I88: 5.7 | J88: 32.5 | K88: 2.36 | L88: 0.47 | M88: 0.49 | N88: 1.08 | O88: 0.37 | P88: 0.65
A89: 87 | B89: Жмыхи и шроты | C89: Жмых соевый кормовой | E89: 3460 | F89: 35.6 | G89: 5.8 | H89: 7.3 | I89: 5.4 | J89: 35.9 | K89: 2.26 | L89: 0.45 | M89: 0.55 | N89: 0.94 | O89: 0.42 | P89: 0.63
A90: 88 | B90: Жмыхи и шроты | C90: Шрот соевый экструдированный | E90: 3519 | F90: 42 | G90: 1.2 | H90: 5.54 | J90: 41.26 | K90: 2.71 | L90: 0.6 | N90: 1.3 | O90: 0.38 | P90: 0.65
A91: 89 | B91: Жмыхи и шроты | C91: Шрот хлопковый с 41% сырого протеина | E91: 3340 | F91: 41.4 | G91: 2 | H91: 13 | I91: 6.3 | J91: 27.3 | K91: 1.76 | L91: 0.55 | M91: 0.55 | N91: 1.3 | O91: 0.28 | P91: 1
A92: 90 | B92: Жмыхи и шроты | C92: Шрот хлопковый с 36—40% сырого протеина | E92: 3284 | F92: 37.5 | G92: 1.9 | H92: 14 | I92: 6.4 | J92: 30.2 | K92: 1.7 | L92: 0.5 | M92: 0.67 | N92: 1.21 | O92: 0.28 | P92: 1
A93: 91 | B93: Жмыхи и шроты | C93: Шрот хлопковый с менее 36% сырого протеина | E93: 3253 | F93: 33 | G93: 2 | H93: 15.1 | I93: 5.8 | J93: 34.1 | K93: 1.4 | L93: 0.18 | M93: 0.47 | N93: 1.09 | O93: 0.3 | P93: 0.9
A94: 92 | B94: Жмыхи и шроты | C94: Жмых хлопковый | E94: 3551 | F94: 37 | G94: 8.2 | H94: 11.3 | I94: 6.3 | J94: 27.2 | K94: 1.59 | L94: 0.44 | M94: 0.5 | N94: 1.01 | O94: 0.36 | P94: 0.95
A95: 93 | B95: Жмыхи и шроты | C95: Шрот льняной | E95: 3218 | F95: 33.3 | G95: 1.8 | H95: 9.8 | I95: 6.7 | J95: 38.4 | K95: 1.21 | L95: 0.53 | M95: 0.52 | N95: 1.13 | O95: 0.33 | P95: 0.76
A96: 94 | B96: Жмыхи и шроты | C96: Жмых льняной | E96: 3468 | F96: 32.5 | G96: 7.7 | H96: 12.1 | I96: 6.5 | J96: 31.2 | K96: 1.04 | L96: 0.46 | M96: 0.4 | N96: 0.93 | O96: 0.39 | P96: 1.01
A97: 95 | B97: Жмыхи и шроты | C97: Шрот арахисовый с более 46% сырого протеина | E97: 3408 | F97: 50 | G97: 1.2 | H97: 8.8 | I97: 6.4 | J97: 23.6 | K97: 1.7 | L97: 0.5 | M97: 0.5 | N97: 1.14 | O97: 0.18 | P97: 0.53
A98: 96 | B98: Жмыхи и шроты | C98: Шрот арахисовый с менее 46% сырого протеина | E98: 3301 | F98: 41.6 | G98: 1.2 | H98: 9.1 | I98: 6.5 | J98: 31.6 | K98: 1.52 | L98: 0.5 | M98: 0.36 | N98: 1.14 | O98: 0.18 | P98: 0.53
A99: 97 | B99: Жмыхи и шроты | C99: Жмых арахисовый | E99: 3599 | F99: 47.5 | G99: 5.7 | H99: 4.6 | I99: 5.5 | J99: 26.7 | K99: 1.58 | L99: 0.45 | M99: 0.51 | N99: 1.04 | O99: 0.24 | P99: 0.67
A100: 98 | B100: Жмыхи и шроты | C100: Шрот кориандровый | E100: 2985 | F100: 15.7 | G100: 2 | H100: 23.9 | I100: 7.5 | J100: 40.9 | K100: 0.65 | L100: 0.15 | M100: 0.2 | N100: 0.37 | O100: 1.06 | P100: 0.6
A101: 99 | B101: Жмыхи и шроты | C101: Шрот кокосовый | E101: 3324 | F101: 20.4 | G101: 7.2 | H101: 13.9 | I101: 5.7 | J101: 42.8 | K101: 0.58 | L101: 0.32 | M101: 0.18 | N101: 0.51 | O101: 0.14 | P101: 0.57
A102: 100 | B102: Жмыхи и шроты | C102: Шрот клещевинный | E102: 3271 | F102: 40 | G102: 1.8 | H102: 23.5 | I102: 7.6 | J102: 17.1 | K102: 1.17 | L102: 0.4 | M102: 0.59 | N102: 1.06 | O102: 0.7 | P102: 0.46
A103: 101 | B103: Жмыхи и шроты | C103: Шрот рапсовый | E103: 3241 | F103: 36 | G103: 2.1 | H103: 12 | I103: 7.4 | J103: 32.5 | K103: 1.78 | L103: 0.55 | M103: 0.51 | N103: 1.68 | O103: 0.6 | P103: 0.8
A104: 102 | B104: Жмыхи и шроты | C104: Жмых рапсовый | E104: 3539 | F104: 33 | G104: 9 | H104: 13.2 | I104: 6.2 | J104: 28.6 | K104: 1.58 | L104: 0.54 | M104: 0.49 | N104: 1.33 | O104: 0.8 | P104: 1
A105: 103 | B105: Жмыхи и шроты | C105: Жмых из виноградных семян | E105: 3282 | F105: 12.6 | G105: 6.4 | H105: 34.6 | I105: 3 | J105: 33.4 | K105: 0.26 | L105: 0.3 | M105: 0.21 | N105: 0.48 | O105: 0.47 | P105: 0.31
A106: 104 | B106: Жмыхи и шроты | C106: Жмых сафлеровый | E106: 3272 | F106: 18 | G106: 5 | H106: 36 | I106: 3.5 | J106: 27.5 | K106: 0.5 | L106: 0.3 | M106: 0.2 | N106: 0.6 | O106: 0.4 | P106: 0.7
A107: 105 | B107: Жмыхи и шроты | C107: Жмых кунжутный | E107: 3531 | F107: 39 | G107: 10 | H107: 7 | I107: 10 | J107: 24 | K107: 1.2 | L107: 1.1 | M107: 0.9 | N107: 1.7 | O107: 1.5 | P107: 0.5
A108: 106 | B108: Жмыхи и шроты | C108: Жмых сурепконый | E108: 3456 | F108: 32 | G108: 9.5 | H108: 12 | I108: 9 | J108: 27.5 | K108: 2 | L108: 0.5 | M108: 0.6 | N108: 1.8 | O108: 0.3 | P108: 0.4
A109: 107 | B109: Отходы технических производств | C109: Шелуха хлопковая | E109: 3054 | F109: 12 | G109: 2 | H109: 12 | I109: 4 | J109: 60 | O109: 0.3 | P109: 0.2
A110: 108 | B110: Крахмал | C110: Крахмал картофельный | E110: 2951 | F110: 0.7 | I110: 0.3 | J110: 89
A111: 109 | B111: Сахаристые корма | C111: Меласса свекловичная | E111: 2815 | F111: 8.9 | I111: 7.5 | J111: 73.6 | O111: 0.25 | P111: 0.02
A112: 110 | B112: Сахаристые корма | C112: Патока крахмальная | E112: 2943 | F112: 0.6 | I112: 0.5 | J112: 88.9 | O112: 0.03 | P112: 0.01
A113: 111 | B113: Сахаристые корма | C113: Гидрол | E113: 2994 | F113: 5 | I113: 0.6 | J113: 84.4
A114: 112 | B114: Сахаристые корма | C114: Кормовой сахар | E114: 2866 | F114: 2 | G114: 0.1 | H114: 0.5 | I114: 3.5 | J114: 83.9
A115: 113 | B115: Сахаристые корма | C115: Сахар | D115: * | E115: 2952 | J115: 90
A116: 114 | B116: Сахаристые корма | C116: Древесный гидролизный сахар | E116: 2713 | F116: 0.6 | I116: 7.5 | J116: 81.9
A117: 115 | B117: Отходы технических производств | C117: Жом свекловичный сушеный | E117: 2935 | F117: 8.3 | G117: 0.6 | H117: 18.3 | I117: 4.4 | J117: 58.4 | K117: 0.49 | L117: 0.08 | M117: 0.09 | N117: 0.17 | O117: 1.08 | P117: 0.11
A118: 116 | B118: Отходы технических производств | C118: Кукурузный корм сухой | E118: 3213 | F118: 16.4 | G118: 4.3 | H118: 8.6 | I118: 3.8 | J118: 56.9 | K118: 0.56 | L118: 0.3 | M118: 0.15 | N118: 0.58 | O118: 0.28 | P118: 0.62
A119: 117 | B119: Отходы технических производств | C119: Барда сухая | E119: 3266 | F119: 23 | G119: 4.5 | H119: 9.2 | I119: 4.9 | J119: 48.4 | K119: 0.84 | L119: 0.43 | M119: 0.16 | N119: 0.68 | O119: 0.44 | P119: 0.44
A120: 118 | B120: Отходы технических производств | C120: Дробина пивная | E120: 3228 | F120: 21.6 | G120: 3.4 | H120: 14.3 | I120: 4.1 | J120: 46.6 | K120: 0.65 | L120: 0.3 | M120: 0.21 | N120: 0.4 | O120: 0.09 | P120: 0.43
A121: 119 | B121: Дрожжи | C121: Сухой мицелий | E121: 2642 | F121: 31.2 | G121: 1.5 | H121: 5.1 | I121: 23.1 | J121: 29.1 | K121: 1.44 | L121: 0.3 | M121: 1.1 | N121: 0.39 | O121: 0.87 | P121: 0.17
A122: 120 | B122: Дрожжи | C122: Дрожжи гидролизные | E122: 3605 | F122: 49 | G122: 1.2 | H122: 1.4 | J122: 38.4 | K122: 3.14 | L122: 0.5 | N122: 0.9 | O122: 0.59 | P122: 1.32
A123: 121 | B123: Дрожжи | C123: Дрожжи пивные | E123: 3302 | F123: 46 | G123: 1.1 | H123: 1.2 | I123: 8 | J123: 33.7 | K123: 3.8 | L123: 0.7 | M123: 0.5 | N123: 1.3 | O123: 0.3 | P123: 0.2
A124: 122 | B124: Дрожжи | C124: Дрожжи кормовые сульфитные | E124: 3318 | F124: 43 | G124: 3.1 | H124: 1.3 | I124: 9 | J124: 33.6 | K124: 3.5 | L124: 0.5 | M124: 0.4 | N124: 0.8 | O124: 0.5 | P124: 1.1
A125: 123 | B125: Дрожжи | C125: Дрожжи пекарские | E125: 3429 | F125: 49 | G125: 3.6 | H125: 0.9 | I125: 8.5 | J125: 28 | K125: 3.9 | L125: 0.6 | M125: 0.3 | N125: 0.9 | O125: 0.07 | P125: 0.3
A126: 124 | B126: Дрожжи | C126: Дрожжи БВК (паприн) | E126: 3353 | F126: 48.6 | G126: 0.7 | H126: 0.6 | I126: 6.9 | J126: 33.2 | K126: 3.7 | L126: 0.57 | M126: 0.7 | N126: 1.09 | O126: 0.2 | P126: 1.08
A127: 125 | B127: Дрожжи | C127: Дрожжи кормовые (эприн) | E127: 3403 | F127: 56.6 | G127: 0.5 | H127: 0.7 | I127: 8.1 | J127: 24.1 | K127: 4.39 | L127: 0.8 | M127: 0.7 | N127: 1.52 | O127: 0.19 | P127: 1.14
A128: 126 | B128: Дрожжи | C128: Дрожжи кормовые с содержанием сырого протеина свыше 50% | E128: 3487 | F128: 54.3 | G128: 1.5 | H128: 1 | I128: 6 | J128: 27.2 | K128: 3.36 | L128: 0.55 | M128: 0.63 | N128: 1.05 | O128: 0.38 | P128: 1.13
A129: 127 | B129: Мука рыбная | C129: Мука рыбная с 66% сырого протеина | D129: * | E129: 3723 | F129: 68.5 | G129: 7.4 | I129: 11.8 | J129: 2.3 | K129: 5.5 | L129: 1.6 | M129: 0.71 | N129: 3.1 | O129: 4 | P129: 2.5
A130: 128 | B130: Мука рыбная | C130: Мука рыбная с 61—65% сырого протеина | E130: 3564 | F130: 63 | G130: 7.4 | I130: 14.6 | J130: 5 | K130: 5.05 | L130: 1.66 | M130: 0.65 | N130: 2.03 | O130: 4.5 | P130: 2.7
A131: 129 | B131: Мука рыбная | C131: Мука рыбная с 56—60% сырого протеина | E131: 3445 | F131: 58.1 | G131: 8.1 | I131: 17.3 | J131: 6.5 | K131: 4.66 | L131: 1.53 | M131: 0.6 | N131: 2.63 | O131: 5.5 | P131: 4.1
A132: 130 | B132: Мука рыбная | C132: Мука рыбная с 51—55% сырого протеина | E132: 3378 | F132: 52.5 | G132: 8.6 | I132: 17.9 | J132: 11 | K132: 4.21 | L132: 1.38 | M132: 0.54 | N132: 2.38 | O132: 6.3 | P132: 4.7
A133: 131 | B133: Мука рыбная | C133: Мука рыбная с 48—50% сырого протеина | E133: 3320 | F133: 48 | G133: 9.3 | I133: 18.9 | J133: 13.8 | K133: 3.84 | L133: 1.26 | M133: 0.5 | N133: 2.17 | O133: 8 | P133: 6.4
A134: 132 | B134: Мука мясокостная | C134: Мука кормовая мясокостная с 50% сырого протеина | E134: 3585 | F134: 50 | G134: 14 | I134: 17.7 | J134: 8.3 | K134: 2.92 | L134: 0.68 | M134: 0.46 | N134: 1.16 | O134: 7.43 | P134: 3.85
A135: 133 | B135: Мука мясокостная | C135: Мука кормовая мясокостная 42—49% сырого протеина | E135: 3612 | F135: 44 | G135: 16.6 | H135: 2 | I135: 18 | J135: 9.4 | K135: 2.33 | L135: 0.53 | M135: 0.41 | N135: 0.87 | O135: 8.14 | P135: 4.23
A136: 134 | B136: Мука мясокостная | C136: Мука кормовая мясокостная с 36—41% сырого протеина | E136: 3257 | F136: 37.9 | G136: 13.8 | H136: 2 | I136: 22.9 | J136: 13.4 | K136: 2 | L136: 0.52 | M136: 0.34 | N136: 0.81 | O136: 9.05 | P136: 4.8
A137: 135 | B137: Мука мясокостная и костная | C137: Мука кормовая мясокостная с менее 36% оырого протеина | E137: 3175 | F137: 34.1 | G137: 17.5 | H137: 2 | I137: 28.8 | J137: 7.6 | K137: 1.74 | L137: 0.5 | M137: 0.33 | N137: 0.77 | O137: 10.5 | P137: 5.35
A138: 136 | B138: Мука мясокостная и костная | C138: Мука кормовая костная необезжиренная | E138: 1859 | F138: 18.1 | G138: 13.1 | I138: 57.2 | J138: 1.6 | K138: 0.7 | L138: 0.25 | M138: 0.1 | N138: 0.39 | O138: 19 | P138: 9.37
A139: 137 | B139: Мука мясокостная и костная | C139: Мука кормовая костная обезжиренная | E139: 1173 | F139: 7.2 | G139: 1.5 | I139: 58.9 | J139: 22.4 | K139: 0.33 | L139: 0.06 | M139: 0.06 | N139: 0.14 | O139: 21.2 | P139: 12.4
A140: 138 | B140: Мука мясокостная и костная | C140: Мука кровяная | E140: 3773 | F140: 75 | G140: 3.1 | I140: 7.1 | J140: 4.8 | K140: 6.2 | L140: 0.91 | M140: 1.06 | N140: 2.05 | O140: 0.37 | P140: 0.34
A141: 139 | B141: Мука мясокостная и костная | C141: Мука мясная | E141: 3713 | F141: 54 | G141: 14.1 | I141: 15.4 | J141: 6.5 | K141: 3.62 | L141: 0.9 | M141: 0.44 | N141: 1.36 | O141: 5.6 | P141: 2.82
A142: 140 | B142: Мука рыбная | C142: Мука крабовая | E142: 2479 | F142: 37.2 | G142: 1.8 | H142: 1.1 | I142: 30.7 | J142: 19.2 | K142: 1.82 | L142: 0.62 | M142: 0.38 | N142: 1.03 | O142: 4.28 | P142: 1.59
A143: 141 | B143: Мука рыбная | C143: Мука креветочная | E143: 2994 | F143: 44.5 | G143: 5 | H143: 4.2 | I143: 21.9 | J143: 14.4 | K143: 2.44 | L143: 0.69 | M143: 0.48 | N143: 1.09 | O143: 5.17 | P143: 1.39
A144: 142 | B144: Мука рыбная | C144: Мука кормовая крилевая | E144: 3804 | F144: 52.8 | G144: 12.8 | H144: 1.3 | I144: 10.5 | J144: 12.6 | K144: 3.3 | L144: 1.03 | M144: 0.47 | N144: 0.52 | O144: 3.08 | P144: 1.7
A145: 143 | B145: Мука рыбная | C145: Мука кормовая китовая | E145: 3175 | F145: 59.2 | G145: 6.7 | I145: 24.1 | J145: 0 | K145: 3.78 | L145: 1.29 | M145: 0.87 | N145: 2.04 | O145: 3.39 | P145: 2.5
A146: 144 | B146: Рыба свежая | C146: Рыба свежая | E146: 1116 | F146: 16 | G146: 5 | I146: 1.5 | J146: 0.5 | K146: 0.5 | L146: 0.2 | M146: 0.3 | N146: 0.4 | O146: 0.9 | P146: 0.7
A147: 145 | B147: Мука мясокостная и костная | C147: Мука из гидролизного пера | E147: 3979 | F147: 79.9 | G147: 4.6 | I147: 4.6 | J147: 0.9 | K147: 1.57 | L147: 0.42 | M147: 0.4 | N147: 4 | O147: 0.6 | P147: 0.56
A148: 146 | B148: Мясные продукты | C148: Баранина | F148: 20 | G148: 9 | I148: 0.8 | K148: 1.8 | L148: 0.5 | M148: 0.2 | N148: 0.9 | O148: 0.09 | P148: 0.16
A149: 147 | B149: Мясные продукты | C149: Говядина | F149: 22 | G149: 4 | I149: 1 | K149: 1.8 | L149: 0.6 | M149: 0.2 | N149: 0.9 | O149: 0.09 | P149: 0.16
A150: 148 | B150: Мясные продукты | C150: Субпродукты | F150: 15 | G150: 3 | I150: 1 | K150: 1.7 | L150: 0.5 | M150: 0.2 | N150: 0.9 | O150: 0.08 | P150: 0.2
A151: 149 | B151: Молочные продукты | C151: Молоко сухое обезжиренное | E151: 3146 | F151: 33.3 | G151: 0.8 | I151: 7.6 | J151: 48.3 | K151: 2.85 | L151: 0.86 | M151: 0.43 | N151: 1.13 | O151: 1.29 | P151: 0.98
A152: 150 | B152: Молочные продукты | C152: Сыворотка молочная сухая | E152: 3023 | F152: 11.3 | G152: 0.8 | I152: 3.1 | J152: 74.8 | K152: 0.87 | L152: 0.4 | M152: 0.14 | N152: 0.9 | O152: 1.18 | P152: 0.66
A153: 151 | B153: Молочные продукты | C153: Казеин | E153: 4066 | F153: 79.8 | G153: 6.2 | I153: 8.2 | J153: 0 | K153: 6.14 | L153: 2.79 | M153: 0.96 | N153: 6.35 | O153: 1.34 | P153: 1
A154: 152 | B154: Молочные продукты | C154: Молоко обезжиренное | E154: 322 | F154: 3.3 | G154: 0.3 | I154: 0.8 | J154: 4.6 | K154: 0.2 | L154: 0.09 | M154: 0.03 | N154: 0.1 | O154: 0.12 | P154: 0.1
A155: 153 | B155: Молочные продукты | C155: Пахта сухая | E155: 3084 | F155: 29 | G155: 0.9 | I155: 8 | J155: 52.1 | K155: 0.6 | L155: 0.8 | M155: 0.5 | N155: 1.1 | O155: 1.3 | P155: 0.7
A156: 154 | B156: Молочные продукты | C156: Творог свежий | F156: 16 | G156: 0.5 | I156: 0.7 | K156: 6.4 | L156: 2.5 | N156: 3.2 | O156: 0.2 | P156: 0.2
A157: 155 | B157: Жиры | C157: Жиры животные пищевые | G157: 99
A158: 156 | B158: Жиры | C158: Жиры кондитерские и кулинарные | G158: 99
A159: 157 | B159: Жиры | C159: Жир животный кормовой | E159: 7406 | G159: 98 | J159: 0
A160: 158 | B160: Жиры | C160: Фосфатидный концентрат | E160: 4441 | F160: 26.1 | G160: 31.6 | H160: 0.7 | I160: 5.6 | J160: 26 | K160: 1.19 | L160: 0.39 | M160: 0.21 | N160: 0.69 | O160: 0.42 | P160: 1.07
A161: 159 | B161: Аминокислоты | C161: ККЛ | D161: * | E161: 3037 | F161: 34.3 | G161: 0.5 | H161: 0.8 | I161: 10.9 | J161: 43.5 | K161: 6.2 | L161: 0.49 | M161: 0.85 | N161: 0.79 | O161: 2.76 | P161: 1.08
A162: 160 | B162: Аминокислоты | C162: Метионин кормовой | D162: * | E162: 2919 | I162: 1 | J162: 89 | L162: 98 | N162: 98
A163: 161 | B163: Минералы | C163: Мел кормовой | D163: * | O163: 33
A164: 162 | B164: Минералы | C164: Известняки | O164: 32
A165: 163 | B165: Минералы | C165: Ракушка | O165: 33
A166: 164 | B166: Минералы | C166: Монокальцийфосфат | D166: * | O166: 16.4 | P166: 23
A167: 165 | B167: Минералы | C167: Дикальцийфосфат | O167: 25 | P167: 18.8
A168: 166 | B168: Минералы | C168: Трикальцийфосфат | O168: 32 | P168: 14
A169: 167 | B169: Минералы | C169: Мука костная (для минеральной подкормки) | O169: 26.5 | P169: 14
A170: 168 | B170: Минералы | C170: Соль поваренная | D170: *

Sheet Нормы
A1: № п.п. | B1: Возрастная и технологическая группа карпа | C1: Отметить группу (*) | D1: Обменная энергия не менее, ккал/кг | E1: Массовая доля влаги % | F1: Массовая доля сырой клетчатки % не более | G1: Массовая доля сырого протеина не менее, % | H1: Массовая доля лизина, не менее % | I1: Массовая доля суммы метионина и цистина, не менее % | J1: Массовая доля кальция не менее % | K1: Массовая доля фосфора не менее % | L1: Массовая доля золы, не более % | M1: Массовая доля натрия, не более % | O1: Отметить группу (*) | Q1: № п.п. | R1: Возрастная и технологическая группа карпа | S1: Отметить группу (*) | T1: Обменная энергия не менее, ккал/кг | U1: Массовая доля влаги % | V1: Массовая доля сырой клетчатки % не более | W1: Массовая доля сырого протеина не менее, % | X1: Массовая доля лизина, не менее % | Y1: Массовая доля суммы метионина и цистина, не менее % | Z1: Массовая доля кальция не менее % | AA1: Массовая доля фосфора не менее % | AB1: Массовая доля золы, не более % | AC1: Массовая доля натрия, не более %
A2: 1 | B2: Сеголеток | D2: 2400 | E2: 13.5 | F2: 6 | G2: 26 | H2: 1 | I2: 0.7 | J2: 1.2 | K2: 1 | L2: 10 | M2: 0.6 | O2: * | Q2: 5 | R2: Племенной молодняк | S2: * | T2: 2400 | U2: 13.5 | V2: 6 | W2: 26 | X2: 1 | Y2: 0.8 | Z2: 1.4 | AA2: 1 | AB2: 10 | AC2: 0.6
A3: 2 | B3: Двухлеток | D3: 2300 | E3: 13.5 | F3: 10 | G3: 23 | H3: 0.7 | I3: 0.8 | J3: 0.7 | K3: 0.7 | L3: 10 | M3: 0.6
A4: 3 | B4: Трехлеток | D4: 2300 | E4: 13.5 | F4: 6 | G4: 26 | H4: 1 | I4: 0.8 | J4: 1.4 | K4: 1 | L4: 10 | M4: 0.6
A5: 4 | B5: Производители | D5: 2400 | E5: 13.5 | F5: 6 | G5: 26 | H5: 1 | I5: 0.8 | J5: 1.4 | K5: 1 | L5: 10 | M5: 0.6
A6: 5 | B6: Племенной молодняк | C6: * | D6: 2400 | E6: 13.5 | F6: 6 | G6: 26 | H6: 1 | I6: 0.8 | J6: 1.4 | K6: 1 | L6: 10 | M6: 0.6

Sheet Рецепт
A1: Рецепт полнорационного комбикорма для | B1: ='Нормы'!R2 -> Племенной молодняк
A2: Показатель | B2: Содержание в комбикорме, % | C2: минимальная норма ввода в комбикорма | E2: Обменная энергия в 1 кг, ккал | F2: Питательные вещества, %
D3: максимальные нормы ввода в комбикорма | F3: Сырой протеин | G3: Сырой жир | H3: Сырая клетчатка | I3: Сырая зола | J3: Лизин | K3: Метионин | L3: Триптофан | M3: Метионин+цистин | N3: Кальций | O3: Фосфор
A4: ограничение | B4: = | E4: >= | F4: >= | G4: >= | H4: <= | I4: <= | J4: >= | K4: >= | L4: >= | M4: >= | N4: >= | O4: >=
A5: Норма | B5: 100 | E5: ='Нормы'!T2 -> 2400 | F5: ='Нормы'!W2 -> 26 | H5: ='Нормы'!V2 -> 6 | I5: ='Нормы'!AB2 -> 10 | J5: ='Нормы'!X2 -> 1 | M5: ='Нормы'!Y2 -> 0.8 | N5: ='Нормы'!Z2 -> 1.4 | O5: ='Нормы'!AA2 -> 1
A6: Всего | B6: =SUM(B10:B55) -> 100 | E6: =SUM(E10:E55) -> 3161.446323 | F6: 26 | G6: 3.364202093 | H6: 7.612304784 | I6: 4.792509573 | J6: 1 | K6: 0.4651318627 | L6: 0.3103793942 | M6: 0.8671144389 | N6: 0.804926927 | O6: 0.8420278618
A7: Разница к норме, абсолютная | B7: =IF(B5>0,B6-B5,"нет нормы") -> 0 | E7: =IF(E5>0,E6-E5,"нет нормы") -> 761.4463233 | F7: 0 | G7: нет нормы | H7: 1.612304784 | I7: -5.207490427 | J7: 0 | K7: нет нормы | L7: нет нормы | M7: 0.06711443885 | N7: -0.595073073 | O7: -0.1579721382
A8: Разница к норме, % | B8: =IF(B6<>"нет нормы",B6/B5*100-100,"") -> 0 | E8: =IF(E6<>"нет нормы",E6/E5*100-100,"") -> 31.72693014 | F8: 0 | G8: #DIV/0! | H8: 26.8717464 | I8: -52.07490427 | J8: 0 | K8: #DIV/0! | L8: #DIV/0! | M8: 8.389304857 | N8: -42.5052195 | O8: -15.79721382
A9: Ингредиенты:
A10: =IF('Корма'!V3<>0,'Корма'!V3,"") -> Мука из древесной зелени I сорта | B10: 3.891514432 | C10: 0 | D10: 100 | E10: =IF('Корма'!X3<>0,'Корма'!X3*'Рецепт'!$B10/100,"") -> 118.1463782 | F10: =IF('Корма'!Y3<>0,'Корма'!Y3*'Рецепт'!$B10/100,"") -> 0.2334908659 | G10: ='Корма'!Z3*'Рецепт'!$B10/100 -> 0.1673351206 | H10: =IF('Корма'!AA3<>0,'Корма'!AA3*'Рецепт'!$B10/100,"") -> 0.9300719493 | I10: =IF('Корма'!AB3<>0,'Корма'!AB3*'Рецепт'!$B10/100,"") -> 0.2062502649 | J10: =IF('Корма'!AD3<>0,'Корма'!AD3*'Рецепт'!$B10/100,"") -> 0.00972878608 | K10: ='Корма'!AE3*'Рецепт'!$B10/100 -> 0.005058968762 | L10: ='Корма'!AF3*'Рецепт'!$B10/100 -> 0.01284199763 | M10: =IF('Корма'!AG3<>0,'Корма'!AG3*'Рецепт'!$B10/100,"") -> 0.008172180307 | N10: =IF('Корма'!AH3<>0,'Корма'!AH3*'Рецепт'!$B10/100,"") -> 0.03541278133 | O10: =IF('Корма'!AI3<>0,'Корма'!AI3*'Рецепт'!$B10/100,"") -> 0.004280665875
A11: =IF('Корма'!V4<>0,'Корма'!V4,"") -> Пшеница щуплая | B11: 25.09877593 | C11: 0 | D11: 100 | E11: =IF('Корма'!X4<>0,'Корма'!X4*'Рецепт'!$B11/100,"") -> 760.7438983 | F11: =IF('Корма'!Y4<>0,'Корма'!Y4*'Рецепт'!$B11/100,"") -> 3.764816389 | G11: ='Корма'!Z4*'Рецепт'!$B11/100 -> 0.4768767426 | H11: =IF('Корма'!AA4<>0,'Корма'!AA4*'Рецепт'!$B11/100,"") -> 1.079247365 | I11: =IF('Корма'!AB4<>0,'Корма'!AB4*'Рецепт'!$B11/100,"") -> 0.4266791908 | J11: =IF('Корма'!AD4<>0,'Корма'!AD4*'Рецепт'!$B11/100,"") -> 0.09537534852 | K11: ='Корма'!AE4*'Рецепт'!$B11/100 -> 0.04517779667 | L11: ='Корма'!AF4*'Рецепт'!$B11/100 -> 0.04517779667 | M11: =IF('Корма'!AG4<>0,'Корма'!AG4*'Рецепт'!$B11/100,"") -> 0.09788522611 | N11: =IF('Корма'!AH4<>0,'Корма'!AH4*'Рецепт'!$B11/100,"") -> 0.01254938796 | O11: =IF('Корма'!AI4<>0,'Корма'!AI4*'Рецепт'!$B11/100,"") -> 0.1054148589
A12: =IF('Корма'!V5<>0,'Корма'!V5,"") -> Зерновая смесь от первичной обработки с 50—70% зерна | B12: 22.81009563 | C12: 0 | D12: 100 | E12: =IF('Корма'!X5<>0,'Корма'!X5*'Рецепт'!$B12/100,"") -> 659.8960666 | F12: =IF('Корма'!Y5<>0,'Корма'!Y5*'Рецепт'!$B12/100,"") -> 2.668781189 | G12: ='Корма'!Z5*'Рецепт'!$B12/100 -> 0.3193413388 | H12: =IF('Корма'!AA5<>0,'Корма'!AA5*'Рецепт'!$B12/100,"") -> 1.687947077 | I12: =IF('Корма'!AB5<>0,'Корма'!AB5*'Рецепт'!$B12/100,"") -> 0.9124038253 | J12: =IF('Корма'!AD5<>0,'Корма'!AD5*'Рецепт'!$B12/100,"") -> 0.05246321995 | K12: ='Корма'!AE5*'Рецепт'!$B12/100 -> 0.02281009563 | L12: ='Корма'!AF5*'Рецепт'!$B12/100 -> 0.01824807651 | M12: =IF('Корма'!AG5<>0,'Корма'!AG5*'Рецепт'!$B12/100,"") -> 0.0433391817 | N12: =IF('Корма'!AH5<>0,'Корма'!AH5*'Рецепт'!$B12/100,"") -> 0.05246321995 | O12: =IF('Корма'!AI5<>0,'Корма'!AI5*'Рецепт'!$B12/100,"") -> 0.07755432515
A13: =IF('Корма'!V6<>0,'Корма'!V6,"") -> Шрот подсолнечный, обогащенный липидами | B13: 39.94937136 | C13: 0 | D13: 100 | E13: =IF('Корма'!X6<>0,'Корма'!X6*'Рецепт'!$B13/100,"") -> 1362.673057 | F13: =IF('Корма'!Y6<>0,'Корма'!Y6*'Рецепт'!$B13/100,"") -> 14.86116614 | G13: ='Корма'!Z6*'Рецепт'!$B13/100 -> 1.917569825 | H13: =IF('Корма'!AA6<>0,'Корма'!AA6*'Рецепт'!$B13/100,"") -> 3.915038393 | I13: =IF('Корма'!AB6<>0,'Корма'!AB6*'Рецепт'!$B13/100,"") -> 2.476861024 | J13: =IF('Корма'!AD6<>0,'Корма'!AD6*'Рецепт'!$B13/100,"") -> 0.4833873934 | K13: ='Корма'!AE6*'Рецепт'!$B13/100 -> 0.2876354738 | L13: ='Корма'!AF6*'Рецепт'!$B13/100 -> 0.1877620454 | M13: =IF('Корма'!AG6<>0,'Корма'!AG6*'Рецепт'!$B13/100,"") -> 0.5153468905 | N13: =IF('Корма'!AH6<>0,'Корма'!AH6*'Рецепт'!$B13/100,"") -> 0.1597974854 | O13: =IF('Корма'!AI6<>0,'Корма'!AI6*'Рецепт'!$B13/100,"") -> 0.3595443422
A14: =IF('Корма'!V7<>0,'Корма'!V7,"") -> Сахар | B14: 0.5740490541 | C14: 0 | D14: 100 | E14: =IF('Корма'!X7<>0,'Корма'!X7*'Рецепт'!$B14/100,"") -> 16.94592808 | F14: =IF('Корма'!Y7<>0,'Корма'!Y7*'Рецепт'!$B14/100,"") ->  | G14: ='Корма'!Z7*'Рецепт'!$B14/100 -> 0 | H14: =IF('Корма'!AA7<>0,'Корма'!AA7*'Рецепт'!$B14/100,"") ->  | I14: =IF('Корма'!AB7<>0,'Корма'!AB7*'Рецепт'!$B14/100,"") ->  | J14: =IF('Корма'!AD7<>0,'Корма'!AD7*'Рецепт'!$B14/100,"") ->  | K14: ='Корма'!AE7*'Рецепт'!$B14/100 -> 0 | L14: ='Корма'!AF7*'Рецепт'!$B14/100 -> 0 | M14: =IF('Корма'!AG7<>0,'Корма'!AG7*'Рецепт'!$B14/100,"") ->  | N14: =IF('Корма'!AH7<>0,'Корма'!AH7*'Рецепт'!$B14/100,"") ->  | O14: =IF('Корма'!AI7<>0,'Корма'!AI7*'Рецепт'!$B14/100,"") -> 
A15: =IF('Корма'!V8<>0,'Корма'!V8,"") -> Мука рыбная с 66% сырого протеина | B15: 6.528095492 | C15: 0 | D15: 100 | E15: =IF('Корма'!X8<>0,'Корма'!X8*'Рецепт'!$B15/100,"") -> 243.0409952 | F15: =IF('Корма'!Y8<>0,'Корма'!Y8*'Рецепт'!$B15/100,"") -> 4.471745412 | G15: ='Корма'!Z8*'Рецепт'!$B15/100 -> 0.4830790664 | H15: =IF('Корма'!AA8<>0,'Корма'!AA8*'Рецепт'!$B15/100,"") ->  | I15: =IF('Корма'!AB8<>0,'Корма'!AB8*'Рецепт'!$B15/100,"") -> 0.770315268 | J15: =IF('Корма'!AD8<>0,'Корма'!AD8*'Рецепт'!$B15/100,"") -> 0.359045252 | K15: ='Корма'!AE8*'Рецепт'!$B15/100 -> 0.1044495279 | L15: ='Корма'!AF8*'Рецепт'!$B15/100 -> 0.04634947799 | M15: =IF('Корма'!AG8<>0,'Корма'!AG8*'Рецепт'!$B15/100,"") -> 0.2023709602 | N15: =IF('Корма'!AH8<>0,'Корма'!AH8*'Рецепт'!$B15/100,"") -> 0.2611238197 | O15: =IF('Корма'!AI8<>0,'Корма'!AI8*'Рецепт'!$B15/100,"") -> 0.1632023873
A16: =IF('Корма'!V9<>0,'Корма'!V9,"") -> ККЛ | B16: 0 | C16: 0 | D16: 100 | E16: =IF('Корма'!X9<>0,'Корма'!X9*'Рецепт'!$B16/100,"") -> 0 | F16: =IF('Корма'!Y9<>0,'Корма'!Y9*'Рецепт'!$B16/100,"") -> 0 | G16: ='Корма'!Z9*'Рецепт'!$B16/100 -> 0 | H16: =IF('Корма'!AA9<>0,'Корма'!AA9*'Рецепт'!$B16/100,"") -> 0 | I16: =IF('Корма'!AB9<>0,'Корма'!AB9*'Рецепт'!$B16/100,"") -> 0 | J16: =IF('Корма'!AD9<>0,'Корма'!AD9*'Рецепт'!$B16/100,"") -> 0 | K16: ='Корма'!AE9*'Рецепт'!$B16/100 -> 0 | L16: ='Корма'!AF9*'Рецепт'!$B16/100 -> 0 | M16: =IF('Корма'!AG9<>0,'Корма'!AG9*'Рецепт'!$B16/100,"") -> 0 | N16: =IF('Корма'!AH9<>0,'Корма'!AH9*'Рецепт'!$B16/100,"") -> 0 | O16: =IF('Корма'!AI9<>0,'Корма'!AI9*'Рецепт'!$B16/100,"") -> 0
A17: =IF('Корма'!V10<>0,'Корма'!V10,"") -> Метионин кормовой | B17: 0 | C17: 0 | D17: 2 | E17: =IF('Корма'!X10<>0,'Корма'!X10*'Рецепт'!$B17/100,"") -> 0 | F17: =IF('Корма'!Y10<>0,'Корма'!Y10*'Рецепт'!$B17/100,"") ->  | G17: ='Корма'!Z10*'Рецепт'!$B17/100 -> 0 | H17: =IF('Корма'!AA10<>0,'Корма'!AA10*'Рецепт'!$B17/100,"") ->  | I17: =IF('Корма'!AB10<>0,'Корма'!AB10*'Рецепт'!$B17/100,"") -> 0 | J17: =IF('Корма'!AD10<>0,'Корма'!AD10*'Рецепт'!$B17/100,"") ->  | K17: ='Корма'!AE10*'Рецепт'!$B17/100 -> 0 | L17: ='Корма'!AF10*'Рецепт'!$B17/100 -> 0 | M17: =IF('Корма'!AG10<>0,'Корма'!AG10*'Рецепт'!$B17/100,"") -> 0 | N17: =IF('Корма'!AH10<>0,'Корма'!AH10*'Рецепт'!$B17/100,"") ->  | O17: =IF('Корма'!AI10<>0,'Корма'!AI10*'Рецепт'!$B17/100,"") -> 
A18: =IF('Корма'!V11<>0,'Корма'!V11,"") -> Мел кормовой | B18: 0.5740490541 | C18: 0 | D18: 3 | E18: =IF('Корма'!X11<>0,'Корма'!X11*'Рецепт'!$B18/100,"") ->  | F18: =IF('Корма'!Y11<>0,'Корма'!Y11*'Рецепт'!$B18/100,"") ->  | G18: ='Корма'!Z11*'Рецепт'!$B18/100 -> 0 | H18: =IF('Корма'!AA11<>0,'Корма'!AA11*'Рецепт'!$B18/100,"") ->  | I18: =IF('Корма'!AB11<>0,'Корма'!AB11*'Рецепт'!$B18/100,"") ->  | J18: =IF('Корма'!AD11<>0,'Корма'!AD11*'Рецепт'!$B18/100,"") ->  | K18: ='Корма'!AE11*'Рецепт'!$B18/100 -> 0 | L18: ='Корма'!AF11*'Рецепт'!$B18/100 -> 0 | M18: =IF('Корма'!AG11<>0,'Корма'!AG11*'Рецепт'!$B18/100,"") ->  | N18: =IF('Корма'!AH11<>0,'Корма'!AH11*'Рецепт'!$B18/100,"") -> 0.1894361878 | O18: =IF('Корма'!AI11<>0,'Корма'!AI11*'Рецепт'!$B18/100,"") -> 
A19: =IF('Корма'!V12<>0,'Корма'!V12,"") -> Монокальцийфосфат | B19: 0.5740490541 | C19: 0 | D19: 100 | E19: =IF('Корма'!X12<>0,'Корма'!X12*'Рецепт'!$B19/100,"") ->  | F19: =IF('Корма'!Y12<>0,'Корма'!Y12*'Рецепт'!$B19/100,"") ->  | G19: ='Корма'!Z12*'Рецепт'!$B19/100 -> 0 | H19: =IF('Корма'!AA12<>0,'Корма'!AA12*'Рецепт'!$B19/100,"") ->  | I19: =IF('Корма'!AB12<>0,'Корма'!AB12*'Рецепт'!$B19/100,"") ->  | J19: =IF('Корма'!AD12<>0,'Корма'!AD12*'Рецепт'!$B19/100,"") ->  | K19: ='Корма'!AE12*'Рецепт'!$B19/100 -> 0 | L19: ='Корма'!AF12*'Рецепт'!$B19/100 -> 0 | M19: =IF('Корма'!AG12<>0,'Корма'!AG12*'Рецепт'!$B19/100,"") ->  | N19: =IF('Корма'!AH12<>0,'Корма'!AH12*'Рецепт'!$B19/100,"") -> 0.09414404487 | O19: =IF('Корма'!AI12<>0,'Корма'!AI12*'Рецепт'!$B19/100,"") -> 0.1320312824
A20: =IF('Корма'!V13<>0,'Корма'!V13,"") -> Соль поваренная | C20: 0 | D20: 100 | E20: =IF('Корма'!X13<>0,'Корма'!X13*'Рецепт'!$B20/100,"") ->  | F20: =IF('Корма'!Y13<>0,'Корма'!Y13*'Рецепт'!$B20/100,"") ->  | G20: ='Корма'!Z13*'Рецепт'!$B20/100 -> 0 | H20: =IF('Корма'!AA13<>0,'Корма'!AA13*'Рецепт'!$B20/100,"") ->  | I20: =IF('Корма'!AB13<>0,'Корма'!AB13*'Рецепт'!$B20/100,"") ->  | J20: =IF('Корма'!AD13<>0,'Корма'!AD13*'Рецепт'!$B20/100,"") ->  | K20: ='Корма'!AE13*'Рецепт'!$B20/100 -> 0 | L20: ='Корма'!AF13*'Рецепт'!$B20/100 -> 0 | M20: =IF('Корма'!AG13<>0,'Корма'!AG13*'Рецепт'!$B20/100,"") ->  | N20: =IF('Корма'!AH13<>0,'Корма'!AH13*'Рецепт'!$B20/100,"") ->  | O20: =IF('Корма'!AI13<>0,'Корма'!AI13*'Рецепт'!$B20/100,"") -> 
A21: =IF('Корма'!V14<>0,'Корма'!V14,"") ->  | C21: 0 | D21: 100 | E21: =IF('Корма'!X14<>0,'Корма'!X14*'Рецепт'!$B21/100,"") ->  | F21: =IF('Корма'!Y14<>0,'Корма'!Y14*'Рецепт'!$B21/100,"") ->  | G21: ='Корма'!Z14*'Рецепт'!$B21/100 -> 0 | H21: =IF('Корма'!AA14<>0,'Корма'!AA14*'Рецепт'!$B21/100,"") ->  | I21: =IF('Корма'!AB14<>0,'Корма'!AB14*'Рецепт'!$B21/100,"") ->  | J21: =IF('Корма'!AD14<>0,'Корма'!AD14*'Рецепт'!$B21/100,"") ->  | K21: ='Корма'!AE14*'Рецепт'!$B21/100 -> 0 | L21: ='Корма'!AF14*'Рецепт'!$B21/100 -> 0 | M21: =IF('Корма'!AG14<>0,'Корма'!AG14*'Рецепт'!$B21/100,"") ->  | N21: =IF('Корма'!AH14<>0,'Корма'!AH14*'Рецепт'!$B21/100,"") ->  | O21: =IF('Корма'!AI14<>0,'Корма'!AI14*'Рецепт'!$B21/100,"") -> 
A22: =IF('Корма'!V15<>0,'Корма'!V15,"") ->  | C22: 0 | D22: 100 | E22: =IF('Корма'!X15<>0,'Корма'!X15*'Рецепт'!$B22/100,"") ->  | F22: =IF('Корма'!Y15<>0,'Корма'!Y15*'Рецепт'!$B22/100,"") ->  | G22: ='Корма'!Z15*'Рецепт'!$B22/100 -> 0 | H22: =IF('Корма'!AA15<>0,'Корма'!AA15*'Рецепт'!$B22/100,"") ->  | I22: =IF('Корма'!AB15<>0,'Корма'!AB15*'Рецепт'!$B22/100,"") ->  | J22: =IF('Корма'!AD15<>0,'Корма'!AD15*'Рецепт'!$B22/100,"") ->  | K22: ='Корма'!AE15*'Рецепт'!$B22/100 -> 0 | L22: ='Корма'!AF15*'Рецепт'!$B22/100 -> 0 | M22: =IF('Корма'!AG15<>0,'Корма'!AG15*'Рецепт'!$B22/100,"") ->  | N22: =IF('Корма'!AH15<>0,'Корма'!AH15*'Рецепт'!$B22/100,"") ->  | O22: =IF('Корма'!AI15<>0,'Корма'!AI15*'Рецепт'!$B22/100,"") -> 
A23: =IF('Корма'!V16<>0,'Корма'!V16,"") ->  | C23: 0 | D23: 100 | E23: =IF('Корма'!X16<>0,'Корма'!X16*'Рецепт'!$B23/100,"") ->  | F23: =IF('Корма'!Y16<>0,'Корма'!Y16*'Рецепт'!$B23/100,"") ->  | G23: ='Корма'!Z16*'Рецепт'!$B23/100 -> 0 | H23: =IF('Корма'!AA16<>0,'Корма'!AA16*'Рецепт'!$B23/100,"") ->  | I23: =IF('Корма'!AB16<>0,'Корма'!AB16*'Рецепт'!$B23/100,"") ->  | J23: =IF('Корма'!AD16<>0,'Корма'!AD16*'Рецепт'!$B23/100,"") ->  | K23: ='Корма'!AE16*'Рецепт'!$B23/100 -> 0 | L23: ='Корма'!AF16*'Рецепт'!$B23/100 -> 0 | M23: =IF('Корма'!AG16<>0,'Корма'!AG16*'Рецепт'!$B23/100,"") ->  | N23: =IF('Корма'!AH16<>0,'Корма'!AH16*'Рецепт'!$B23/100,"") ->  | O23: =IF('Корма'!AI16<>0,'Корма'!AI16*'Рецепт'!$B23/100,"") -> 
A24: =IF('Корма'!V17<>0,'Корма'!V17,"") ->  | C24: 0 | D24: 100 | E24: =IF('Корма'!X17<>0,'Корма'!X17*'Рецепт'!$B24/100,"") ->  | F24: =IF('Корма'!Y17<>0,'Корма'!Y17*'Рецепт'!$B24/100,"") ->  | G24: ='Корма'!Z17*'Рецепт'!$B24/100 -> 0 | H24: =IF('Корма'!AA17<>0,'Корма'!AA17*'Рецепт'!$B24/100,"") ->  | I24: =IF('Корма'!AB17<>0,'Корма'!AB17*'Рецепт'!$B24/100,"") ->  | J24: =IF('Корма'!AD17<>0,'Корма'!AD17*'Рецепт'!$B24/100,"") ->  | K24: ='Корма'!AE17*'Рецепт'!$B24/100 -> 0 | L24: ='Корма'!AF17*'Рецепт'!$B24/100 -> 0 | M24: =IF('Корма'!AG17<>0,'Корма'!AG17*'Рецепт'!$B24/100,"") ->  | N24: =IF('Корма'!AH17<>0,'Корма'!AH17*'Рецепт'!$B24/100,"") ->  | O24: =IF('Корма'!AI17<>0,'Корма'!AI17*'Рецепт'!$B24/100,"") -> 
A25: =IF('Корма'!V18<>0,'Корма'!V18,"") ->  | C25: 0 | D25: 100 | E25: =IF('Корма'!X18<>0,'Корма'!X18*'Рецепт'!$B25/100,"") ->  | F25: =IF('Корма'!Y18<>0,'Корма'!Y18*'Рецепт'!$B25/100,"") ->  | G25: ='Корма'!Z18*'Рецепт'!$B25/100 -> 0 | H25: =IF('Корма'!AA18<>0,'Корма'!AA18*'Рецепт'!$B25/100,"") ->  | I25: =IF('Корма'!AB18<>0,'Корма'!AB18*'Рецепт'!$B25/100,"") ->  | J25: =IF('Корма'!AD18<>0,'Корма'!AD18*'Рецепт'!$B25/100,"") ->  | K25: ='Корма'!AE18*'Рецепт'!$B25/100 -> 0 | L25: ='Корма'!AF18*'Рецепт'!$B25/100 -> 0 | M25: =IF('Корма'!AG18<>0,'Корма'!AG18*'Рецепт'!$B25/100,"") ->  | N25: =IF('Корма'!AH18<>0,'Корма'!AH18*'Рецепт'!$B25/100,"") ->  | O25: =IF('Корма'!AI18<>0,'Корма'!AI18*'Рецепт'!$B25/100,"") -> 
A26: =IF('Корма'!V19<>0,'Корма'!V19,"") ->  | C26: 0 | D26: 100 | E26: =IF('Корма'!X19<>0,'Корма'!X19*'Рецепт'!$B26/100,"") ->  | F26: =IF('Корма'!Y19<>0,'Корма'!Y19*'Рецепт'!$B26/100,"") ->  | G26: ='Корма'!Z19*'Рецепт'!$B26/100 -> 0 | H26: =IF('Корма'!AA19<>0,'Корма'!AA19*'Рецепт'!$B26/100,"") ->  | I26: =IF('Корма'!AB19<>0,'Корма'!AB19*'Рецепт'!$B26/100,"") ->  | J26: =IF('Корма'!AD19<>0,'Корма'!AD19*'Рецепт'!$B26/100,"") ->  | K26: ='Корма'!AE19*'Рецепт'!$B26/100 -> 0 | L26: ='Корма'!AF19*'Рецепт'!$B26/100 -> 0 | M26: =IF('Корма'!AG19<>0,'Корма'!AG19*'Рецепт'!$B26/100,"") ->  | N26: =IF('Корма'!AH19<>0,'Корма'!AH19*'Рецепт'!$B26/100,"") ->  | O26: =IF('Корма'!AI19<>0,'Корма'!AI19*'Рецепт'!$B26/100,"") -> 
A27: =IF('Корма'!V20<>0,'Корма'!V20,"") ->  | C27: 0 | D27: 100 | E27: =IF('Корма'!X20<>0,'Корма'!X20*'Рецепт'!$B27/100,"") ->  | F27: =IF('Корма'!Y20<>0,'Корма'!Y20*'Рецепт'!$B27/100,"") ->  | G27: ='Корма'!Z20*'Рецепт'!$B27/100 -> 0 | H27: =IF('Корма'!AA20<>0,'Корма'!AA20*'Рецепт'!$B27/100,"") ->  | I27: =IF('Корма'!AB20<>0,'Корма'!AB20*'Рецепт'!$B27/100,"") ->  | J27: =IF('Корма'!AD20<>0,'Корма'!AD20*'Рецепт'!$B27/100,"") ->  | K27: ='Корма'!AE20*'Рецепт'!$B27/100 -> 0 | L27: ='Корма'!AF20*'Рецепт'!$B27/100 -> 0 | M27: =IF('Корма'!AG20<>0,'Корма'!AG20*'Рецепт'!$B27/100,"") ->  | N27: =IF('Корма'!AH20<>0,'Корма'!AH20*'Рецепт'!$B27/100,"") ->  | O27: =IF('Корма'!AI20<>0,'Корма'!AI20*'Рецепт'!$B27/100,"") -> 
A28: =IF('Корма'!V21<>0,'Корма'!V21,"") ->  | C28: 0 | D28: 100 | E28: =IF('Корма'!X21<>0,'Корма'!X21*'Рецепт'!$B28/100,"") ->  | F28: =IF('Корма'!Y21<>0,'Корма'!Y21*'Рецепт'!$B28/100,"") ->  | G28: ='Корма'!Z21*'Рецепт'!$B28/100 -> 0 | H28: =IF('Корма'!AA21<>0,'Корма'!AA21*'Рецепт'!$B28/100,"") ->  | I28: =IF('Корма'!AB21<>0,'Корма'!AB21*'Рецепт'!$B28/100,"") ->  | J28: =IF('Корма'!AD21<>0,'Корма'!AD21*'Рецепт'!$B28/100,"") ->  | K28: ='Корма'!AE21*'Рецепт'!$B28/100 -> 0 | L28: ='Корма'!AF21*'Рецепт'!$B28/100 -> 0 | M28: =IF('Корма'!AG21<>0,'Корма'!AG21*'Рецепт'!$B28/100,"") ->  | N28: =IF('Корма'!AH21<>0,'Корма'!AH21*'Рецепт'!$B28/100,"") ->  | O28: =IF('Корма'!AI21<>0,'Корма'!AI21*'Рецепт'!$B28/100,"") -> 
A29: =IF('Корма'!V22<>0,'Корма'!V22,"") ->  | C29: 0 | D29: 100 | E29: =IF('Корма'!X22<>0,'Корма'!X22*'Рецепт'!$B29/100,"") ->  | F29: =IF('Корма'!Y22<>0,'Корма'!Y22*'Рецепт'!$B29/100,"") ->  | G29: ='Корма'!Z22*'Рецепт'!$B29/100 -> 0 | H29: =IF('Корма'!AA22<>0,'Корма'!AA22*'Рецепт'!$B29/100,"") ->  | I29: =IF('Корма'!AB22<>0,'Корма'!AB22*'Рецепт'!$B29/100,"") ->  | J29: =IF('Корма'!AD22<>0,'Корма'!AD22*'Рецепт'!$B29/100,"") ->  | K29: ='Корма'!AE22*'Рецепт'!$B29/100 -> 0 | L29: ='Корма'!AF22*'Рецепт'!$B29/100 -> 0 | M29: =IF('Корма'!AG22<>0,'Корма'!AG22*'Рецепт'!$B29/100,"") ->  | N29: =IF('Корма'!AH22<>0,'Корма'!AH22*'Рецепт'!$B29/100,"") ->  | O29: =IF('Корма'!AI22<>0,'Корма'!AI22*'Рецепт'!$B29/100,"") -> 
A30: =IF('Корма'!V23<>0,'Корма'!V23,"") ->  | C30: 0 | D30: 100 | E30: =IF('Корма'!X23<>0,'Корма'!X23*'Рецепт'!$B30/100,"") ->  | F30: =IF('Корма'!Y23<>0,'Корма'!Y23*'Рецепт'!$B30/100,"") ->  | G30: ='Корма'!Z23*'Рецепт'!$B30/100 -> 0 | H30: =IF('Корма'!AA23<>0,'Корма'!AA23*'Рецепт'!$B30/100,"") ->  | I30: =IF('Корма'!AB23<>0,'Корма'!AB23*'Рецепт'!$B30/100,"") ->  | J30: =IF('Корма'!AD23<>0,'Корма'!AD23*'Рецепт'!$B30/100,"") ->  | K30: ='Корма'!AE23*'Рецепт'!$B30/100 -> 0 | L30: ='Корма'!AF23*'Рецепт'!$B30/100 -> 0 | M30: =IF('Корма'!AG23<>0,'Корма'!AG23*'Рецепт'!$B30/100,"") ->  | N30: =IF('Корма'!AH23<>0,'Корма'!AH23*'Рецепт'!$B30/100,"") ->  | O30: =IF('Корма'!AI23<>0,'Корма'!AI23*'Рецепт'!$B30/100,"") -> 
A31: =IF('Корма'!V24<>0,'Корма'!V24,"") ->  | C31: 0 | D31: 100 | E31: =IF('Корма'!X24<>0,'Корма'!X24*'Рецепт'!$B31/100,"") ->  | F31: =IF('Корма'!Y24<>0,'Корма'!Y24*'Рецепт'!$B31/100,"") ->  | G31: ='Корма'!Z24*'Рецепт'!$B31/100 -> 0 | H31: =IF('Корма'!AA24<>0,'Корма'!AA24*'Рецепт'!$B31/100,"") ->  | I31: =IF('Корма'!AB24<>0,'Корма'!AB24*'Рецепт'!$B31/100,"") ->  | J31: =IF('Корма'!AD24<>0,'Корма'!AD24*'Рецепт'!$B31/100,"") ->  | K31: ='Корма'!AE24*'Рецепт'!$B31/100 -> 0 | L31: ='Корма'!AF24*'Рецепт'!$B31/100 -> 0 | M31: =IF('Корма'!AG24<>0,'Корма'!AG24*'Рецепт'!$B31/100,"") ->  | N31: =IF('Корма'!AH24<>0,'Корма'!AH24*'Рецепт'!$B31/100,"") ->  | O31: =IF('Корма'!AI24<>0,'Корма'!AI24*'Рецепт'!$B31/100,"") -> 
A32: =IF('Корма'!V25<>0,'Корма'!V25,"") ->  | C32: 0 | D32: 100 | E32: =IF('Корма'!X25<>0,'Корма'!X25*'Рецепт'!$B32/100,"") ->  | F32: =IF('Корма'!Y25<>0,'Корма'!Y25*'Рецепт'!$B32/100,"") ->  | G32: ='Корма'!Z25*'Рецепт'!$B32/100 -> 0 | H32: =IF('Корма'!AA25<>0,'Корма'!AA25*'Рецепт'!$B32/100,"") ->  | I32: =IF('Корма'!AB25<>0,'Корма'!AB25*'Рецепт'!$B32/100,"") ->  | J32: =IF('Корма'!AD25<>0,'Корма'!AD25*'Рецепт'!$B32/100,"") ->  | K32: ='Корма'!AE25*'Рецепт'!$B32/100 -> 0 | L32: ='Корма'!AF25*'Рецепт'!$B32/100 -> 0 | M32: =IF('Корма'!AG25<>0,'Корма'!AG25*'Рецепт'!$B32/100,"") ->  | N32: =IF('Корма'!AH25<>0,'Корма'!AH25*'Рецепт'!$B32/100,"") ->  | O32: =IF('Корма'!AI25<>0,'Корма'!AI25*'Рецепт'!$B32/100,"") -> 
A33: =IF('Корма'!V26<>0,'Корма'!V26,"") ->  | C33: 0 | D33: 100 | E33: =IF('Корма'!X26<>0,'Корма'!X26*'Рецепт'!$B33/100,"") ->  | F33: =IF('Корма'!Y26<>0,'Корма'!Y26*'Рецепт'!$B33/100,"") ->  | G33: ='Корма'!Z26*'Рецепт'!$B33/100 -> 0 | H33: =IF('Корма'!AA26<>0,'Корма'!AA26*'Рецепт'!$B33/100,"") ->  | I33: =IF('Корма'!AB26<>0,'Корма'!AB26*'Рецепт'!$B33/100,"") ->  | J33: =IF('Корма'!AD26<>0,'Корма'!AD26*'Рецепт'!$B33/100,"") ->  | K33: ='Корма'!AE26*'Рецепт'!$B33/100 -> 0 | L33: ='Корма'!AF26*'Рецепт'!$B33/100 -> 0 | M33: =IF('Корма'!AG26<>0,'Корма'!AG26*'Рецепт'!$B33/100,"") ->  | N33: =IF('Корма'!AH26<>0,'Корма'!AH26*'Рецепт'!$B33/100,"") ->  | O33: =IF('Корма'!AI26<>0,'Корма'!AI26*'Рецепт'!$B33/100,"") -> 
A34: =IF('Корма'!V27<>0,'Корма'!V27,"") ->  | C34: 0 | D34: 100 | E34: =IF('Корма'!X27<>0,'Корма'!X27*'Рецепт'!$B34/100,"") ->  | F34: =IF('Корма'!Y27<>0,'Корма'!Y27*'Рецепт'!$B34/100,"") ->  | G34: ='Корма'!Z27*'Рецепт'!$B34/100 -> 0 | H34: =IF('Корма'!AA27<>0,'Корма'!AA27*'Рецепт'!$B34/100,"") ->  | I34: =IF('Корма'!AB27<>0,'Корма'!AB27*'Рецепт'!$B34/100,"") ->  | J34: =IF('Корма'!AD27<>0,'Корма'!AD27*'Рецепт'!$B34/100,"") ->  | K34: ='Корма'!AE27*'Рецепт'!$B34/100 -> 0 | L34: ='Корма'!AF27*'Рецепт'!$B34/100 -> 0 | M34: =IF('Корма'!AG27<>0,'Корма'!AG27*'Рецепт'!$B34/100,"") ->  | N34: =IF('Корма'!AH27<>0,'Корма'!AH27*'Рецепт'!$B34/100,"") ->  | O34: =IF('Корма'!AI27<>0,'Корма'!AI27*'Рецепт'!$B34/100,"") -> 
A35: =IF('Корма'!V28<>0,'Корма'!V28,"") ->  | C35: 0 | D35: 100 | E35: =IF('Корма'!X28<>0,'Корма'!X28*'Рецепт'!$B35/100,"") ->  | F35: =IF('Корма'!Y28<>0,'Корма'!Y28*'Рецепт'!$B35/100,"") ->  | G35: ='Корма'!Z28*'Рецепт'!$B35/100 -> 0 | H35: =IF('Корма'!AA28<>0,'Корма'!AA28*'Рецепт'!$B35/100,"") ->  | I35: =IF('Корма'!AB28<>0,'Корма'!AB28*'Рецепт'!$B35/100,"") ->  | J35: =IF('Корма'!AD28<>0,'Корма'!AD28*'Рецепт'!$B35/100,"") ->  | K35: ='Корма'!AE28*'Рецепт'!$B35/100 -> 0 | L35: ='Корма'!AF28*'Рецепт'!$B35/100 -> 0 | M35: =IF('Корма'!AG28<>0,'Корма'!AG28*'Рецепт'!$B35/100,"") ->  | N35: =IF('Корма'!AH28<>0,'Корма'!AH28*'Рецепт'!$B35/100,"") ->  | O35: =IF('Корма'!AI28<>0,'Корма'!AI28*'Рецепт'!$B35/100,"") -> 
A36: =IF('Корма'!V29<>0,'Корма'!V29,"") ->  | C36: 0 | D36: 100 | E36: =IF('Корма'!X29<>0,'Корма'!X29*'Рецепт'!$B36/100,"") ->  | F36: =IF('Корма'!Y29<>0,'Корма'!Y29*'Рецепт'!$B36/100,"") ->  | G36: ='Корма'!Z29*'Рецепт'!$B36/100 -> 0 | H36: =IF('Корма'!AA29<>0,'Корма'!AA29*'Рецепт'!$B36/100,"") ->  | I36: =IF('Корма'!AB29<>0,'Корма'!AB29*'Рецепт'!$B36/100,"") ->  | J36: =IF('Корма'!AD29<>0,'Корма'!AD29*'Рецепт'!$B36/100,"") ->  | K36: ='Корма'!AE29*'Рецепт'!$B36/100 -> 0 | L36: ='Корма'!AF29*'Рецепт'!$B36/100 -> 0 | M36: =IF('Корма'!AG29<>0,'Корма'!AG29*'Рецепт'!$B36/100,"") ->  | N36: =IF('Корма'!AH29<>0,'Корма'!AH29*'Рецепт'!$B36/100,"") ->  | O36: =IF('Корма'!AI29<>0,'Корма'!AI29*'Рецепт'!$B36/100,"") -> 
A37: =IF('Корма'!V30<>0,'Корма'!V30,"") ->  | C37: 0 | D37: 100 | E37: =IF('Корма'!X30<>0,'Корма'!X30*'Рецепт'!$B37/100,"") ->  | F37: =IF('Корма'!Y30<>0,'Корма'!Y30*'Рецепт'!$B37/100,"") ->  | G37: ='Корма'!Z30*'Рецепт'!$B37/100 -> 0 | H37: =IF('Корма'!AA30<>0,'Корма'!AA30*'Рецепт'!$B37/100,"") ->  | I37: =IF('Корма'!AB30<>0,'Корма'!AB30*'Рецепт'!$B37/100,"") ->  | J37: =IF('Корма'!AD30<>0,'Корма'!AD30*'Рецепт'!$B37/100,"") ->  | K37: ='Корма'!AE30*'Рецепт'!$B37/100 -> 0 | L37: ='Корма'!AF30*'Рецепт'!$B37/100 -> 0 | M37: =IF('Корма'!AG30<>0,'Корма'!AG30*'Рецепт'!$B37/100,"") ->  | N37: =IF('Корма'!AH30<>0,'Корма'!AH30*'Рецепт'!$B37/100,"") ->  | O37: =IF('Корма'!AI30<>0,'Корма'!AI30*'Рецепт'!$B37/100,"") -> 
A38: =IF('Корма'!V31<>0,'Корма'!V31,"") ->  | C38: 0 | D38: 100 | E38: =IF('Корма'!X31<>0,'Корма'!X31*'Рецепт'!$B38/100,"") ->  | F38: =IF('Корма'!Y31<>0,'Корма'!Y31*'Рецепт'!$B38/100,"") ->  | G38: ='Корма'!Z31*'Рецепт'!$B38/100 -> 0 | H38: =IF('Корма'!AA31<>0,'Корма'!AA31*'Рецепт'!$B38/100,"") ->  | I38: =IF('Корма'!AB31<>0,'Корма'!AB31*'Рецепт'!$B38/100,"") ->  | J38: =IF('Корма'!AD31<>0,'Корма'!AD31*'Рецепт'!$B38/100,"") ->  | K38: ='Корма'!AE31*'Рецепт'!$B38/100 -> 0 | L38: ='Корма'!AF31*'Рецепт'!$B38/100 -> 0 | M38: =IF('Корма'!AG31<>0,'Корма'!AG31*'Рецепт'!$B38/100,"") ->  | N38: =IF('Корма'!AH31<>0,'Корма'!AH31*'Рецепт'!$B38/100,"") ->  | O38: =IF('Корма'!AI31<>0,'Корма'!AI31*'Рецепт'!$B38/100,"") -> 
A39: =IF('Корма'!V32<>0,'Корма'!V32,"") ->  | C39: 0 | D39: 100 | E39: =IF('Корма'!X32<>0,'Корма'!X32*'Рецепт'!$B39/100,"") ->  | F39: =IF('Корма'!Y32<>0,'Корма'!Y32*'Рецепт'!$B39/100,"") ->  | G39: ='Корма'!Z32*'Рецепт'!$B39/100 -> 0 | H39: =IF('Корма'!AA32<>0,'Корма'!AA32*'Рецепт'!$B39/100,"") ->  | I39: =IF('Корма'!AB32<>0,'Корма'!AB32*'Рецепт'!$B39/100,"") ->  | J39: =IF('Корма'!AD32<>0,'Корма'!AD32*'Рецепт'!$B39/100,"") ->  | K39: ='Корма'!AE32*'Рецепт'!$B39/100 -> 0 | L39: ='Корма'!AF32*'Рецепт'!$B39/100 -> 0 | M39: =IF('Корма'!AG32<>0,'Корма'!AG32*'Рецепт'!$B39/100,"") ->  | N39: =IF('Корма'!AH32<>0,'Корма'!AH32*'Рецепт'!$B39/100,"") ->  | O39: =IF('Корма'!AI32<>0,'Корма'!AI32*'Рецепт'!$B39/100,"") -> 
A40: =IF('Корма'!V33<>0,'Корма'!V33,"") ->  | C40: 0 | D40: 100 | E40: =IF('Корма'!X33<>0,'Корма'!X33*'Рецепт'!$B40/100,"") ->  | F40: =IF('Корма'!Y33<>0,'Корма'!Y33*'Рецепт'!$B40/100,"") ->  | G40: ='Корма'!Z33*'Рецепт'!$B40/100 -> 0 | H40: =IF('Корма'!AA33<>0,'Корма'!AA33*'Рецепт'!$B40/100,"") ->  | I40: =IF('Корма'!AB33<>0,'Корма'!AB33*'Рецепт'!$B40/100,"") ->  | J40: =IF('Корма'!AD33<>0,'Корма'!AD33*'Рецепт'!$B40/100,"") ->  | K40: ='Корма'!AE33*'Рецепт'!$B40/100 -> 0 | L40: ='Корма'!AF33*'Рецепт'!$B40/100 -> 0 | M40: =IF('Корма'!AG33<>0,'Корма'!AG33*'Рецепт'!$B40/100,"") ->  | N40: =IF('Корма'!AH33<>0,'Корма'!AH33*'Рецепт'!$B40/100,"") ->  | O40: =IF('Корма'!AI33<>0,'Корма'!AI33*'Рецепт'!$B40/100,"") -> 
A41: =IF('Корма'!V34<>0,'Корма'!V34,"") ->  | C41: 0 | D41: 100 | E41: =IF('Корма'!X34<>0,'Корма'!X34*'Рецепт'!$B41/100,"") ->  | F41: =IF('Корма'!Y34<>0,'Корма'!Y34*'Рецепт'!$B41/100,"") ->  | G41: ='Корма'!Z34*'Рецепт'!$B41/100 -> 0 | H41: =IF('Корма'!AA34<>0,'Корма'!AA34*'Рецепт'!$B41/100,"") ->  | I41: =IF('Корма'!AB34<>0,'Корма'!AB34*'Рецепт'!$B41/100,"") ->  | J41: =IF('Корма'!AD34<>0,'Корма'!AD34*'Рецепт'!$B41/100,"") ->  | K41: ='Корма'!AE34*'Рецепт'!$B41/100 -> 0 | L41: ='Корма'!AF34*'Рецепт'!$B41/100 -> 0 | M41: =IF('Корма'!AG34<>0,'Корма'!AG34*'Рецепт'!$B41/100,"") ->  | N41: =IF('Корма'!AH34<>0,'Корма'!AH34*'Рецепт'!$B41/100,"") ->  | O41: =IF('Корма'!AI34<>0,'Корма'!AI34*'Рецепт'!$B41/100,"") -> 
A42: =IF('Корма'!V35<>0,'Корма'!V35,"") ->  | C42: 0 | D42: 100 | E42: =IF('Корма'!X35<>0,'Корма'!X35*'Рецепт'!$B42/100,"") ->  | F42: =IF('Корма'!Y35<>0,'Корма'!Y35*'Рецепт'!$B42/100,"") ->  | G42: ='Корма'!Z35*'Рецепт'!$B42/100 -> 0 | H42: =IF('Корма'!AA35<>0,'Корма'!AA35*'Рецепт'!$B42/100,"") ->  | I42: =IF('Корма'!AB35<>0,'Корма'!AB35*'Рецепт'!$B42/100,"") ->  | J42: =IF('Корма'!AD35<>0,'Корма'!AD35*'Рецепт'!$B42/100,"") ->  | K42: ='Корма'!AE35*'Рецепт'!$B42/100 -> 0 | L42: ='Корма'!AF35*'Рецепт'!$B42/100 -> 0 | M42: =IF('Корма'!AG35<>0,'Корма'!AG35*'Рецепт'!$B42/100,"") ->  | N42: =IF('Корма'!AH35<>0,'Корма'!AH35*'Рецепт'!$B42/100,"") ->  | O42: =IF('Корма'!AI35<>0,'Корма'!AI35*'Рецепт'!$B42/100,"") -> 
A43: =IF('Корма'!V36<>0,'Корма'!V36,"") ->  | C43: 0 | D43: 100 | E43: =IF('Корма'!X36<>0,'Корма'!X36*'Рецепт'!$B43/100,"") ->  | F43: =IF('Корма'!Y36<>0,'Корма'!Y36*'Рецепт'!$B43/100,"") ->  | G43: ='Корма'!Z36*'Рецепт'!$B43/100 -> 0 | H43: =IF('Корма'!AA36<>0,'Корма'!AA36*'Рецепт'!$B43/100,"") ->  | I43: =IF('Корма'!AB36<>0,'Корма'!AB36*'Рецепт'!$B43/100,"") ->  | J43: =IF('Корма'!AD36<>0,'Корма'!AD36*'Рецепт'!$B43/100,"") ->  | K43: ='Корма'!AE36*'Рецепт'!$B43/100 -> 0 | L43: ='Корма'!AF36*'Рецепт'!$B43/100 -> 0 | M43: =IF('Корма'!AG36<>0,'Корма'!AG36*'Рецепт'!$B43/100,"") ->  | N43: =IF('Корма'!AH36<>0,'Корма'!AH36*'Рецепт'!$B43/100,"") ->  | O43: =IF('Корма'!AI36<>0,'Корма'!AI36*'Рецепт'!$B43/100,"") -> 
A44: =IF('Корма'!V37<>0,'Корма'!V37,"") ->  | C44: 0 | D44: 100 | E44: =IF('Корма'!X37<>0,'Корма'!X37*'Рецепт'!$B44/100,"") ->  | F44: =IF('Корма'!Y37<>0,'Корма'!Y37*'Рецепт'!$B44/100,"") ->  | G44: ='Корма'!Z37*'Рецепт'!$B44/100 -> 0 | H44: =IF('Корма'!AA37<>0,'Корма'!AA37*'Рецепт'!$B44/100,"") ->  | I44: =IF('Корма'!AB37<>0,'Корма'!AB37*'Рецепт'!$B44/100,"") ->  | J44: =IF('Корма'!AD37<>0,'Корма'!AD37*'Рецепт'!$B44/100,"") ->  | K44: ='Корма'!AE37*'Рецепт'!$B44/100 -> 0 | L44: ='Корма'!AF37*'Рецепт'!$B44/100 -> 0 | M44: =IF('Корма'!AG37<>0,'Корма'!AG37*'Рецепт'!$B44/100,"") ->  | N44: =IF('Корма'!AH37<>0,'Корма'!AH37*'Рецепт'!$B44/100,"") ->  | O44: =IF('Корма'!AI37<>0,'Корма'!AI37*'Рецепт'!$B44/100,"") -> 
A45: =IF('Корма'!V38<>0,'Корма'!V38,"") ->  | C45: 0 | D45: 100 | E45: =IF('Корма'!X38<>0,'Корма'!X38*'Рецепт'!$B45/100,"") ->  | F45: =IF('Корма'!Y38<>0,'Корма'!Y38*'Рецепт'!$B45/100,"") ->  | G45: ='Корма'!Z38*'Рецепт'!$B45/100 -> 0 | H45: =IF('Корма'!AA38<>0,'Корма'!AA38*'Рецепт'!$B45/100,"") ->  | I45: =IF('Корма'!AB38<>0,'Корма'!AB38*'Рецепт'!$B45/100,"") ->  | J45: =IF('Корма'!AD38<>0,'Корма'!AD38*'Рецепт'!$B45/100,"") ->  | K45: ='Корма'!AE38*'Рецепт'!$B45/100 -> 0 | L45: ='Корма'!AF38*'Рецепт'!$B45/100 -> 0 | M45: =IF('Корма'!AG38<>0,'Корма'!AG38*'Рецепт'!$B45/100,"") ->  | N45: =IF('Корма'!AH38<>0,'Корма'!AH38*'Рецепт'!$B45/100,"") ->  | O45: =IF('Корма'!AI38<>0,'Корма'!AI38*'Рецепт'!$B45/100,"") -> 
A46: =IF('Корма'!V39<>0,'Корма'!V39,"") ->  | C46: 0 | D46: 100 | E46: =IF('Корма'!X39<>0,'Корма'!X39*'Рецепт'!$B46/100,"") ->  | F46: =IF('Корма'!Y39<>0,'Корма'!Y39*'Рецепт'!$B46/100,"") ->  | G46: ='Корма'!Z39*'Рецепт'!$B46/100 -> 0 | H46: =IF('Корма'!AA39<>0,'Корма'!AA39*'Рецепт'!$B46/100,"") ->  | I46: =IF('Корма'!AB39<>0,'Корма'!AB39*'Рецепт'!$B46/100,"") ->  | J46: =IF('Корма'!AD39<>0,'Корма'!AD39*'Рецепт'!$B46/100,"") ->  | K46: ='Корма'!AE39*'Рецепт'!$B46/100 -> 0 | L46: ='Корма'!AF39*'Рецепт'!$B46/100 -> 0 | M46: =IF('Корма'!AG39<>0,'Корма'!AG39*'Рецепт'!$B46/100,"") ->  | N46: =IF('Корма'!AH39<>0,'Корма'!AH39*'Рецепт'!$B46/100,"") ->  | O46: =IF('Корма'!AI39<>0,'Корма'!AI39*'Рецепт'!$B46/100,"") -> 
A47: =IF('Корма'!V40<>0,'Корма'!V40,"") ->  | C47: 0 | D47: 100 | E47: =IF('Корма'!X40<>0,'Корма'!X40*'Рецепт'!$B47/100,"") ->  | F47: =IF('Корма'!Y40<>0,'Корма'!Y40*'Рецепт'!$B47/100,"") ->  | G47: ='Корма'!Z40*'Рецепт'!$B47/100 -> 0 | H47: =IF('Корма'!AA40<>0,'Корма'!AA40*'Рецепт'!$B47/100,"") ->  | I47: =IF('Корма'!AB40<>0,'Корма'!AB40*'Рецепт'!$B47/100,"") ->  | J47: =IF('Корма'!AD40<>0,'Корма'!AD40*'Рецепт'!$B47/100,"") ->  | K47: ='Корма'!AE40*'Рецепт'!$B47/100 -> 0 | L47: ='Корма'!AF40*'Рецепт'!$B47/100 -> 0 | M47: =IF('Корма'!AG40<>0,'Корма'!AG40*'Рецепт'!$B47/100,"") ->  | N47: =IF('Корма'!AH40<>0,'Корма'!AH40*'Рецепт'!$B47/100,"") ->  | O47: =IF('Корма'!AI40<>0,'Корма'!AI40*'Рецепт'!$B47/100,"") -> 
A48: =IF('Корма'!V41<>0,'Корма'!V41,"") ->  | C48: 0 | D48: 100 | E48: =IF('Корма'!X41<>0,'Корма'!X41*'Рецепт'!$B48/100,"") ->  | F48: =IF('Корма'!Y41<>0,'Корма'!Y41*'Рецепт'!$B48/100,"") ->  | G48: ='Корма'!Z41*'Рецепт'!$B48/100 -> 0 | H48: =IF('Корма'!AA41<>0,'Корма'!AA41*'Рецепт'!$B48/100,"") ->  | I48: =IF('Корма'!AB41<>0,'Корма'!AB41*'Рецепт'!$B48/100,"") ->  | J48: =IF('Корма'!AD41<>0,'Корма'!AD41*'Рецепт'!$B48/100,"") ->  | K48: ='Корма'!AE41*'Рецепт'!$B48/100 -> 0 | L48: ='Корма'!AF41*'Рецепт'!$B48/100 -> 0 | M48: =IF('Корма'!AG41<>0,'Корма'!AG41*'Рецепт'!$B48/100,"") ->  | N48: =IF('Корма'!AH41<>0,'Корма'!AH41*'Рецепт'!$B48/100,"") ->  | O48: =IF('Корма'!AI41<>0,'Корма'!AI41*'Рецепт'!$B48/100,"") -> 
A49: =IF('Корма'!V42<>0,'Корма'!V42,"") ->  | C49: 0 | D49: 100 | E49: =IF('Корма'!X42<>0,'Корма'!X42*'Рецепт'!$B49/100,"") ->  | F49: =IF('Корма'!Y42<>0,'Корма'!Y42*'Рецепт'!$B49/100,"") ->  | G49: ='Корма'!Z42*'Рецепт'!$B49/100 -> 0 | H49: =IF('Корма'!AA42<>0,'Корма'!AA42*'Рецепт'!$B49/100,"") ->  | I49: =IF('Корма'!AB42<>0,'Корма'!AB42*'Рецепт'!$B49/100,"") ->  | J49: =IF('Корма'!AD42<>0,'Корма'!AD42*'Рецепт'!$B49/100,"") ->  | K49: ='Корма'!AE42*'Рецепт'!$B49/100 -> 0 | L49: ='Корма'!AF42*'Рецепт'!$B49/100 -> 0 | M49: =IF('Корма'!AG42<>0,'Корма'!AG42*'Рецепт'!$B49/100,"") ->  | N49: =IF('Корма'!AH42<>0,'Корма'!AH42*'Рецепт'!$B49/100,"") ->  | O49: =IF('Корма'!AI42<>0,'Корма'!AI42*'Рецепт'!$B49/100,"") -> 
A50: =IF('Корма'!V43<>0,'Корма'!V43,"") ->  | C50: 0 | D50: 100 | E50: =IF('Корма'!X43<>0,'Корма'!X43*'Рецепт'!$B50/100,"") ->  | F50: =IF('Корма'!Y43<>0,'Корма'!Y43*'Рецепт'!$B50/100,"") ->  | G50: ='Корма'!Z43*'Рецепт'!$B50/100 -> 0 | H50: =IF('Корма'!AA43<>0,'Корма'!AA43*'Рецепт'!$B50/100,"") ->  | I50: =IF('Корма'!AB43<>0,'Корма'!AB43*'Рецепт'!$B50/100,"") ->  | J50: =IF('Корма'!AD43<>0,'Корма'!AD43*'Рецепт'!$B50/100,"") ->  | K50: ='Корма'!AE43*'Рецепт'!$B50/100 -> 0 | L50: ='Корма'!AF43*'Рецепт'!$B50/100 -> 0 | M50: =IF('Корма'!AG43<>0,'Корма'!AG43*'Рецепт'!$B50/100,"") ->  | N50: =IF('Корма'!AH43<>0,'Корма'!AH43*'Рецепт'!$B50/100,"") ->  | O50: =IF('Корма'!AI43<>0,'Корма'!AI43*'Рецепт'!$B50/100,"") -> 
A51: =IF('Корма'!V44<>0,'Корма'!V44,"") ->  | C51: 0 | D51: 100 | E51: =IF('Корма'!X44<>0,'Корма'!X44*'Рецепт'!$B51/100,"") ->  | F51: =IF('Корма'!Y44<>0,'Корма'!Y44*'Рецепт'!$B51/100,"") ->  | G51: ='Корма'!Z44*'Рецепт'!$B51/100 -> 0 | H51: =IF('Корма'!AA44<>0,'Корма'!AA44*'Рецепт'!$B51/100,"") ->  | I51: =IF('Корма'!AB44<>0,'Корма'!AB44*'Рецепт'!$B51/100,"") ->  | J51: =IF('Корма'!AD44<>0,'Корма'!AD44*'Рецепт'!$B51/100,"") ->  | K51: ='Корма'!AE44*'Рецепт'!$B51/100 -> 0 | L51: ='Корма'!AF44*'Рецепт'!$B51/100 -> 0 | M51: =IF('Корма'!AG44<>0,'Корма'!AG44*'Рецепт'!$B51/100,"") ->  | N51: =IF('Корма'!AH44<>0,'Корма'!AH44*'Рецепт'!$B51/100,"") ->  | O51: =IF('Корма'!AI44<>0,'Корма'!AI44*'Рецепт'!$B51/100,"") -> 
A52: =IF('Корма'!V45<>0,'Корма'!V45,"") ->  | C52: 0 | D52: 100 | E52: =IF('Корма'!X45<>0,'Корма'!X45*'Рецепт'!$B52/100,"") ->  | F52: =IF('Корма'!Y45<>0,'Корма'!Y45*'Рецепт'!$B52/100,"") ->  | G52: ='Корма'!Z45*'Рецепт'!$B52/100 -> 0 | H52: =IF('Корма'!AA45<>0,'Корма'!AA45*'Рецепт'!$B52/100,"") ->  | I52: =IF('Корма'!AB45<>0,'Корма'!AB45*'Рецепт'!$B52/100,"") ->  | J52: =IF('Корма'!AD45<>0,'Корма'!AD45*'Рецепт'!$B52/100,"") ->  | K52: ='Корма'!AE45*'Рецепт'!$B52/100 -> 0 | L52: ='Корма'!AF45*'Рецепт'!$B52/100 -> 0 | M52: =IF('Корма'!AG45<>0,'Корма'!AG45*'Рецепт'!$B52/100,"") ->  | N52: =IF('Корма'!AH45<>0,'Корма'!AH45*'Рецепт'!$B52/100,"") ->  | O52: =IF('Корма'!AI45<>0,'Корма'!AI45*'Рецепт'!$B52/100,"") -> 
A53: =IF('Корма'!V46<>0,'Корма'!V46,"") ->  | C53: 0 | D53: 100 | E53: =IF('Корма'!X46<>0,'Корма'!X46*'Рецепт'!$B53/100,"") ->  | F53: =IF('Корма'!Y46<>0,'Корма'!Y46*'Рецепт'!$B53/100,"") ->  | G53: ='Корма'!Z46*'Рецепт'!$B53/100 -> 0 | H53: =IF('Корма'!AA46<>0,'Корма'!AA46*'Рецепт'!$B53/100,"") ->  | I53: =IF('Корма'!AB46<>0,'Корма'!AB46*'Рецепт'!$B53/100,"") ->  | J53: =IF('Корма'!AD46<>0,'Корма'!AD46*'Рецепт'!$B53/100,"") ->  | K53: ='Корма'!AE46*'Рецепт'!$B53/100 -> 0 | L53: ='Корма'!AF46*'Рецепт'!$B53/100 -> 0 | M53: =IF('Корма'!AG46<>0,'Корма'!AG46*'Рецепт'!$B53/100,"") ->  | N53: =IF('Корма'!AH46<>0,'Корма'!AH46*'Рецепт'!$B53/100,"") ->  | O53: =IF('Корма'!AI46<>0,'Корма'!AI46*'Рецепт'!$B53/100,"") -> 
A54: =IF('Корма'!V47<>0,'Корма'!V47,"") ->  | C54: 0 | D54: 100 | E54: =IF('Корма'!X47<>0,'Корма'!X47*'Рецепт'!$B54/100,"") ->  | F54: =IF('Корма'!Y47<>0,'Корма'!Y47*'Рецепт'!$B54/100,"") ->  | G54: ='Корма'!Z47*'Рецепт'!$B54/100 -> 0 | H54: =IF('Корма'!AA47<>0,'Корма'!AA47*'Рецепт'!$B54/100,"") ->  | I54: =IF('Корма'!AB47<>0,'Корма'!AB47*'Рецепт'!$B54/100,"") ->  | J54: =IF('Корма'!AD47<>0,'Корма'!AD47*'Рецепт'!$B54/100,"") ->  | K54: ='Корма'!AE47*'Рецепт'!$B54/100 -> 0 | L54: ='Корма'!AF47*'Рецепт'!$B54/100 -> 0 | M54: =IF('Корма'!AG47<>0,'Корма'!AG47*'Рецепт'!$B54/100,"") ->  | N54: =IF('Корма'!AH47<>0,'Корма'!AH47*'Рецепт'!$B54/100,"") ->  | O54: =IF('Корма'!AI47<>0,'Корма'!AI47*'Рецепт'!$B54/100,"") -> 
A55: =IF('Корма'!V48<>0,'Корма'!V48,"") ->  | C55: 0 | D55: 100 | E55: =IF('Корма'!X48<>0,'Корма'!X48*'Рецепт'!$B55/100,"") ->  | F55: =IF('Корма'!Y48<>0,'Корма'!Y48*'Рецепт'!$B55/100,"") ->  | G55: ='Корма'!Z48*'Рецепт'!$B55/100 -> 0 | H55: =IF('Корма'!AA48<>0,'Корма'!AA48*'Рецепт'!$B55/100,"") ->  | I55: =IF('Корма'!AB48<>0,'Корма'!AB48*'Рецепт'!$B55/100,"") ->  | J55: =IF('Корма'!AD48<>0,'Корма'!AD48*'Рецепт'!$B55/100,"") ->  | K55: ='Корма'!AE48*'Рецепт'!$B55/100 -> 0 | L55: ='Корма'!AF48*'Рецепт'!$B55/100 -> 0 | M55: =IF('Корма'!AG48<>0,'Корма'!AG48*'Рецепт'!$B55/100,"") ->  | N55: =IF('Корма'!AH48<>0,'Корма'!AH48*'Рецепт'!$B55/100,"") ->  | O55: =IF('Корма'!AI48<>0,'Корма'!AI48*'Рецепт'!$B55/100,"") -> 

Sheet Справка
A1: Максимальные (предельные) нормы ввода компонентов в комбикорма для прудовых карповых рыб, %
A2: Компоненты | B2: Товарный карп | C2: Производители, племенной молодняк и сеголетки
A3: Кукуруза | B3: 30 | C3: 30
A4: Пшеница | B4: 40 | C4: 40
A5: Ячмень | B5: 40 | C5: 40
A6: Овес | B6: 5 | C6: 5
A7: Горох | B7: 20 | C7: 15
A8: Люпин (безалколоидный) кормовой | B8: 20 | C8: 15
A9: Побочный продукт с содержанием полезного зерна выше 50% | B9: 50 | C9: 50
A10: Рожь | B10: 7 | C10: 7
A11: Пшеничные отруби | B11: 20 | C11: 15
A12: Ржаные отруби | B12: 20 | C12: 10
A13: Мука ячменная | B13: 20 | C13: 10
A14: Травяная мука | B14: 5 | C14: 5
A15: Мука витаминная из древесной зелени | B15: 3 | C15: 3
A16: Шрот подсолнечниковый | B16: 55 | C16: 55
A17: Шрот соевый | B17: 30 | C17: 30
A18: Шрот арахисовый | B18: 30 | C18: 30
A19: Шрот льняной | B19: 10 | C19: 10
A20: Шрот хлопковый | B20: 40 | C20: 30
A21: Рыбная кормовая мука | B21: 10 | C21: 10
A22: Мука корм, животного происхождения | B22: 10 | C22: 10
A23: Дрожжи кормовые гидролизные | B23: 5 | C23: 5
A24: Кормовые фосфаты | B24: 1 | C24: 1
A25: Мел | B25: 2 | C25: 2
A26: Соль | B26: 3 | C26: 3
